Cogmind - Beta 11 X5 @@@ ROGUE MODE // 2021.06.12 @ 22:24:39 Player: PCPlusplus Result: Establishing 0b11! Performance ------------- Evolutions (9) 4500 Regions Visited (29) 5800 Robots Destroyed (664) 3320 Value Destroyed (36813) 36813 Prototype IDs (62) 1240 Alien Tech Used (12) 2400 Bonus (36936) 36936 TOTAL SCORE: 91009 Bonus ------- High Alert Combat Kills 6323 Follower Combat Kills 1416 Entered Garrisons 1600 Used RIF Installer 3500 Network Hubs Disabled 200 Met R17 at Research 2000 Scanned by Researcher 500 Destroyed MAIN.C Guards 500 Met MAIN.C 5000 Destroyed MAIN.C Shell 5000 Destroyed MAIN.C 10000 Destroyed A8 300 Destroyed A6 400 Destroyed A5 500 Destroyed A2 1000 Win 3000 Friendly Fire -4303 Cogmind --------- Core Integrity 730/1850 Matter 262/300 Energy 1429/1450 System Corruption 0% Temperature Cool (9) Movement Treading (160) Location 0b11 Command Parts ------- > --- POWER (3) -------- Improved Quantum Reactor Improved Quantum Reactor Improved Quantum Reactor > --- PROPULSION (6) --- Enhanced Armored Heavy Treads Enhanced Armored Heavy Treads Enhanced Armored Heavy Treads > --- UTILITY (12) ----- Experimental Cooling System Coolant Network High-capacity Storage Unit Experimental Energy Well Experimental Targeting Computer Advanced Particle Charger Experimental Phase Shifter Heavy Regenerative Plating AEGIS Remote Shield > --- WEAPON (4) ------- Long-range Gatling Laser Long-range Gatling Laser Neutron Cannon Multirail > --- INVENTORY (20) --- Quantum Reactor Reinforced Quantum Reactor Advanced Medium Treads Advanced Heavy Treads Experimental Matter Compressor (286) AEGIS Remote Shield Long-range Tractor Beam Experimental Field Recycling Unit (0) Long-range Gatling Laser Neutron Cannon Neutron Cannon Improved Potential Cannon Heavy Hardcell Cannon Hypervelocity Linear Accelerator Peak State ------------ > --- POWER ------------ Singularity Reactor > --- PROPULSION ------- Experimental Biometal Heavy Treads Experimental Biometal Heavy Treads Enhanced Armored Heavy Treads > --- UTILITY ---------- Desublimator Experimental Power Amplifier Coolant Network High-capacity Storage Unit Experimental Matter Compressor Experimental Targeting Computer Experimental Targeting Computer Experimental Phase Shifter Experimental Powered Armor Experimental Powered Armor AEGIS Remote Shield > --- WEAPON ----------- Improved Potential Cannon Multirail Multirail > --- INVENTORY -------- Reinforced Quantum Reactor Reinforced Quantum Reactor Improved Quantum Reactor Improved Quantum Reactor Enhanced Armored Heavy Treads Enhanced Armored Heavy Treads Advanced Energy Well Experimental Energy Well AEGIS Remote Shield Long-range Tractor Beam Experimental Field Recycling Unit Long-range Gatling Laser Neutron Cannon Improved Potential Cannon Multirail Multirail [Rating: 262] Favorites ----------- Power Micro Fission Core Engine Cooled Ion Engine Power Core Micro Fission Core Reactor Quantum Reactor Propulsion Centrium Heavy Treads Treads Centrium Heavy Treads Leg Carbon-fiber Leg Wheel Armored Huge Wheel Flight Unit VTOL Module Utility High-capacity Storage Unit Device Advanced Heat Sink Storage High-capacity Storage Unit Processor Experimental Targeting Computer Hackware Advanced Hacking Suite Protection Heavy Regenerative Plating Artifact Matter Drive Weapon KE Penetrator Energy Gun Gatling Laser Energy Cannon Improved Potential Cannon Ballistic Gun KE Penetrator Ballistic Cannon Linear Accelerator Launcher Heavy Rocket Launcher Special Weapon Improved Remote Datajack Impact Weapon Core Stripper Slashing Weapon Sigix Broadsword Special Melee Weapon Improved Datajack Build | -11 -10 -9 -8 -8 -8 -8 -7 -7 -7 -7 -6 -6 -5 -5 -5 -5 -5 -5 -4 -4 -3 -3 -3 -2 -2 -2 -1 -1 -1 ------- Run | Scr Mat Mat Mat Gar Mat Gar Fac Gar Fac Gar Fac Gar Fac Ext Cet Arc Hub Gar Fac Gar Res Tes Gar Res Qua Sec Acc Com Ac0 Slots Evolved 18 | . . 2 2 . . . 2 . . . 2 . 2 . . . . . 2 . 2 . . 2 . . 2 . . Power 2 | . . . . . . . . . . . . . 1 . . . . . 1 . . . . . . . . . . Propulsion 4 | . . 1 . . . . 1 . . . . . . . . . . . . . . . . 2 . . . . . Utility 10 | . . 1 . . . . 1 . . . 2 . 1 . . . . . 1 . 2 . . . . . 2 . . Weapon 2 | . . . 2 . . . . . . . . . . . . . . . . . . . . . . . . . . Parts Attached 857 | 8 30 22 14 2 8 4 20 42 40 18 44 17 25 30 16 11 6 17 43 20 14 28 23 16 46 35 81 90 87 Power 69 | 2 2 3 1 . . 1 2 3 2 3 1 . 4 . 2 . . 2 7 1 1 2 2 4 4 3 3 8 6 Engine 13 | 2 2 3 1 . . 1 1 . . . . . 2 . . . . . 1 . . . . . . . . . . Core 21 | . . . . . . . 1 3 2 3 1 . 2 . . . . 2 5 1 . 1 . . . . . . . Reactor 35 | . . . . . . . . . . . . . . . 2 . . . 1 . 1 1 2 4 4 3 3 8 6 Propulsion 118 | 2 4 7 7 1 3 1 3 12 7 2 12 7 7 10 2 . . . 3 1 2 1 . 3 2 1 8 8 2 Treads 84 | 2 2 7 7 1 2 . . 1 3 2 5 2 7 10 2 . . . 3 1 2 1 . 3 2 1 8 8 2 Leg 15 | . 2 . . . . . 1 4 . . 3 5 . . . . . . . . . . . . . . . . . Wheel 16 | . . . . . 1 1 2 4 4 . 4 . . . . . . . . . . . . . . . . . . Hover . | . . . . . . . . . . . . . . . . . . . . . . . . . . . . . . Flight 3 | . . . . . . . . 3 . . . . . . . . . . . . . . . . . . . . . Utility 371 | 2 8 7 2 . 1 . 5 8 15 4 13 5 8 12 10 9 6 11 23 11 6 14 16 8 29 18 35 47 38 Device 225 | 1 3 1 . . . . 2 5 3 3 9 5 3 8 9 8 2 5 15 10 3 9 13 6 24 9 17 29 23 Storage 29 | . 5 . . . . . 1 2 2 . 1 . . . 1 . . . . . . 3 1 . . . 5 5 3 Processor 19 | 1 . . . . . . 2 . . . 2 . 2 . . . . . 1 . . 1 . . . 4 . 5 1 Hackware 34 | . . 2 2 . . . . . 3 . 1 . 1 1 . . 4 1 4 . 2 1 2 2 1 . 6 1 . Protection 62 | . . 4 . . 1 . . 1 7 1 . . 2 3 . 1 . 5 3 1 1 . . . 3 4 7 7 11 Artifact 2 | . . . . . . . . . . . . . . . . . . . . . . . . . 1 1 . . . Weapon 299 | 2 16 5 4 1 4 2 10 19 16 9 18 5 6 8 2 2 . 4 10 7 5 11 5 1 11 13 35 27 41 Energy Gun 60 | . . 5 . . 4 . . 12 8 2 . 4 4 3 . . . . . . . . . . . 1 11 1 5 Energy Cannon 35 | . 2 . . . . . 3 2 . 3 2 . 1 . . . . . . . . 1 . . . 1 5 3 12 Ballistic Gun 141 | 2 11 . 4 1 . 1 5 3 4 2 13 1 . 5 2 2 . 4 6 7 2 4 2 1 5 4 12 17 21 Ballistic Cannon 12 | . . . . . . . . . . . . . . . . . . . 2 . 3 5 . . 1 . . 1 . Launcher 4 | . . . . . . . 1 . . 2 1 . . . . . . . . . . . . . . . . . . Special Weapon 22 | . 3 . . . . 1 . . . . . . . . . . . . 2 . . 1 3 . 2 3 7 . . Impact Weapon 13 | . . . . . . . 1 2 4 . . . . . . . . . . . . . . . 2 4 . . . Slashing Weapon 9 | . . . . . . . . . . . . . . . . . . . . . . . . . 1 . . 5 3 Piercing Weapon . | . . . . . . . . . . . . . . . . . . . . . . . . . . . . . . Special Melee Weapon 3 | . . . . . . . . . . . 2 . 1 . . . . . . . . . . . . . . . . Unidentified Prototypes 51 | . . . . . 1 . . . . . . . 1 . 3 . . . 2 . . 4 . . 11 13 1 9 6 Corrupted Parts 8 | . . . . . . . 4 1 . . . . . 1 1 . . . . . . . . . . 1 . . . System Corruption 44 | . . . . . . . 26 4 . . . . . 8 2 . . . . . . . . . . 4 . . . Parts Lost 50 | . 5 . 1 1 . 1 3 6 3 1 3 2 4 3 . . . 1 6 . . . 1 . . 1 . . 8 Power 10 | . . . . . . 1 1 1 1 . . . 2 . . . . . 2 . . . 1 . . . . . 1 Propulsion 10 | . 1 . 1 . . . 1 3 . . 2 . . 1 . . . . . . . . . . . . . . 1 Utility 13 | . . . . . . . . 2 1 . 1 . 1 2 . . . 1 3 . . . . . . 1 . . 1 Weapon 17 | . 4 . . 1 . . 1 . 1 1 . 2 1 . . . . . 1 . . . . . . . . . 5 Highest Loss Streak 5 | . 3 . 1 1 . 1 2 5 2 1 1 2 2 3 . . . 1 3 . . . 1 . . 1 . . 3 Average Slot Usage (%) 84 | . 99 97 98 99 90 79 83 82 85 97 95 97 96 98 90 86 85 86 86 88 87 85 83 80 73 65 71 69 74 Engine 2 | . 14 11 8 9 9 7 5 . . . . . 2 . . . . . 1 . . . . . . . . . . Core 3 | . . . . . . . 1 5 6 7 6 6 5 11 4 . . 9 9 15 9 9 7 1 . . . . . Reactor 3 | . . . . . . . . . . . . . . . 6 11 11 1 1 . 3 4 5 11 12 7 8 7 8 Treads 12 | . 14 30 26 27 12 2 . 2 1 28 9 8 19 22 13 11 11 11 10 10 9 11 9 10 13 13 12 12 12 Leg 1 | . 13 . . . . . 1 6 . . 2 14 3 . . . . . . . . . . . . . . . . Wheel 2 | . . . . . 7 15 15 12 14 . 11 . . . . . . . . . . . . . . . . . . Device 15 | . 13 11 . . . . 4 13 9 12 22 30 24 22 23 24 9 17 20 21 18 18 20 11 12 12 12 15 16 Storage 7 | . 13 11 9 9 9 9 14 11 10 7 6 6 5 5 5 5 5 5 5 5 4 5 6 4 4 4 5 5 6 Processor 2 | . . . . . . . 9 . . . . . . . . . . . 1 . . . . . . . 7 8 10 Hackware 4 | . . 3 17 18 15 . . . 1 . . . 2 1 . . 13 . 8 12 15 12 12 22 14 8 6 . . Protection 5 | . . 7 . . 1 9 . 2 7 9 6 2 5 9 11 7 7 15 5 2 4 2 . . 1 6 6 7 6 Energy Gun 6 | . . 18 . . 24 27 15 17 28 4 1 14 22 17 1 . . . . . . . . . . . 2 . 3 Energy Cannon 1 | . 5 3 . . . . 7 2 . 5 3 . . . . . . . . . . . . . . . 2 1 2 Ballistic Gun 10 | . 21 . 36 35 11 7 6 2 1 16 19 11 . 5 20 23 23 23 17 20 17 3 2 2 5 1 2 8 6 Ballistic Cannon 1 | . . . . . . . . . . . . . . . . . . . 2 . 1 13 14 13 3 . . . . Naked Turns 15 | . . . . . . . . 15 . . . . . . . . . . . . . . . . . . . . . Heaviest Build 215 | 10 50 58 60 61 79 79 81 75 86 112 110 95 91 88 116 124 123 123 116 98 139 141 140 157 194 168 176 195 215 Greatest Support 265 | 40 40 60 65 65 62 40 56 48 66 86 86 70 104 130 160 160 160 160 160 150 150 160 160 240 250 265 265 255 250 Greatest Overweight (x) 36 | . 2 1 . . 2 2 1 5 2 1 6 3 1 28 . 36 . . . . 1 . . . . . . . . Average Overweight (x) . | . 1 . . . 1 1 1 1 . . 1 1 . . . 1 . . . . . . . . . . . . . Largest Inventory Capacity 20 | 5 20 20 20 20 20 20 20 20 20 20 20 20 20 20 20 20 20 20 20 20 20 20 20 20 20 20 20 20 20 Average Capacity 19 | 5 17 20 20 20 20 20 20 18 20 20 20 20 20 20 20 20 20 20 20 20 20 20 20 20 20 20 20 20 20 Most Carried 20 | 5 17 20 20 20 20 20 20 20 20 20 20 20 20 20 20 20 20 20 20 20 20 20 20 20 20 20 20 20 20 Average Carried 18 | 1 10 19 19 19 19 19 19 16 19 18 18 19 18 19 19 19 19 19 19 19 19 19 19 19 18 19 19 19 16 Final Capacity 20 | 5 20 20 20 20 20 20 20 20 20 20 20 20 20 20 20 20 20 20 20 20 20 20 20 20 20 20 20 20 20 Final Carried 20 | 5 17 20 20 20 19 20 19 20 20 17 19 19 20 19 20 20 20 20 20 20 19 20 19 20 20 19 20 20 17 Class Distribution -------------------- 16% | Scavenger-Tank 15% | Generator-Mutant 13% | Botlord-Tank 12% | Mutant 10% | Scavenger-Gunner 7% | Tank 4% | Scavenger-Mutant 3% | Hacker-Gunner 3% | Generator-Gladiator Dominant Class ---------------- Mutant | -10/Materials Mutant | -9/Materials Hacker-Gunner | -8/Materials Hacker-Gunner | -8/Garrison Hacker-Gunner | -8/Materials Tank | -8/Garrison Gunner | -7/Factory Scavenger-Mutant | -7/Garrison Tank | -7/Factory Tank | -7/Garrison Scavenger-Tank | -6/Factory Bothacker-Gunner | -6/Garrison Scavenger-Tank | -5/Factory Scavenger-Tank | -5/Extension Scavenger-Tank | -5/Cetus Scavenger-Gunner | -5/Archives Scavenger-Tank | -5/Hub_04(d) Scavenger-Tank | -5/Garrison Botlord-Tank | -4/Factory Botlord-Tank | -4/Garrison Botlord-Tank | -3/Research Botlord-Tank | -3/Testing Botlord-Tank | -3/Garrison Botlord-Tank | -2/Research Bothacker-Mutant | -2/Quarantine Generator-Gladiator | -2/Section 7 Generator-Mutant | -1/Access Generator-Mutant | -1/Command Scavenger-Gunner | -1/Access_0 Resources | -11 -10 -9 -8 -8 -8 -8 -7 -7 -7 -7 -6 -6 -5 -5 -5 -5 -5 -5 -4 -4 -3 -3 -3 -2 -2 -2 -1 -1 -1 ----------- Run | Scr Mat Mat Mat Gar Mat Gar Fac Gar Fac Gar Fac Gar Fac Ext Cet Arc Hub Gar Fac Gar Res Tes Gar Res Qua Sec Acc Com Ac0 Matter Collected 23171 | 378 674 229 766 84 92 104 286 639 565 362 1279 633 401 560 677 542 123 1046 1570 1173 229 544 1111 565 1290 837 1211 2583 2618 Remotely 7440 | . . . . . . . . 79 . . . . . . 419 441 90 181 664 747 . . 743 232 666 385 136 1483 1174 Salvage Created 38398 | 182 1020 1120 1408 95 150 434 647 1163 1291 426 1562 784 934 1542 787 607 572 1494 2228 1348 280 417 622 577 1903 1764 6945 3592 2504 Parts 1633 | 19 79 80 82 10 6 14 28 36 49 18 57 27 34 35 48 38 17 62 96 60 8 17 19 33 66 66 292 128 109 Haulers Intercepted 16 | . 2 6 3 . . . . . . . . . 1 . . . . . 1 . 1 1 . . . . 1 . . Recyclers Shooed 13 | . . . . . . . . . . . 6 . . . . . 1 . 2 . . . . . 1 1 2 . . Parts Field Recycled 50 | . . . . . . . . . . . . . . . . . . . 6 . . . 13 . 21 . . 10 . Retrieved Matter 1370 | . . . . . . . . . . . . . . . . . . . 120 . . . 310 . 672 . . 268 . Parts Self-Destructed . | . . . . . . . . . . . . . . . . . . . . . . . . . . . . . . Prevented . | . . . . . . . . . . . . . . . . . . . . . . . . . . . . . . Kills | -11 -10 -9 -8 -8 -8 -8 -7 -7 -7 -7 -6 -6 -5 -5 -5 -5 -5 -5 -4 -4 -3 -3 -3 -2 -2 -2 -1 -1 -1 ------- Run | Scr Mat Mat Mat Gar Mat Gar Fac Gar Fac Gar Fac Gar Fac Ext Cet Arc Hub Gar Fac Gar Res Tes Gar Res Qua Sec Acc Com Ac0 Combat Hostiles Destroyed 523 | . 20 30 22 6 3 4 12 21 21 11 18 13 8 16 8 4 4 25 29 20 1 1 21 6 27 21 72 43 36 Melee 27 | . . . . . . . . . . 1 . . . . . . . . . . . 1 . . 11 13 1 . . Guns 344 | . 19 27 22 6 3 4 5 16 20 7 12 12 8 11 8 4 4 25 24 20 1 . 3 . 3 4 11 38 27 Cannons 79 | . 1 3 . . . . . 5 . 1 4 . . . . . . . 2 . . . 18 6 11 . 23 . 5 AOE 20 | . . . . . . . 7 . . 2 2 . . . . . . . 3 . . . . . . . 1 1 4 Classes Destroyed 23 | 3 6 2 2 . . . . 2 . . . 1 . 1 . . . . . . . . . . 4 1 . 1 . Worker 34 | 2 2 1 6 . . . 3 . . . 4 . 2 1 . . . . 7 . . . . . 1 . 4 1 . Builder 16 | . 3 . 1 . . . . . 4 . 1 . . 2 . . . . 1 . . 1 . 1 . 1 1 . . Tunneler 9 | 4 1 . . . . . . . 2 . . . 1 . . . . . 1 . . . . . . . . . . Hauler 16 | . 2 6 3 . . . . . . . . . 1 . . . . . 1 . 1 1 . . . . 1 . . Recycler 32 | 1 1 1 3 . . . . . 4 . 6 . 1 1 . . 2 . 2 . 1 2 . 2 . . 5 . . Operator 17 | . 3 . . . . . . . 1 . 2 . . 1 . 7 . . 1 . . . . . . . 2 . . Watcher 17 | . 3 2 2 . . . 1 . 1 . . . 2 1 . . 1 . 2 . . . . . . 1 1 . . Swarmer 106 | . 6 11 6 6 . . . 6 4 . 7 . . . . . . 5 9 3 . . 6 . 4 4 9 20 . Saboteur 2 | . . . . . . . . . . . . . . 1 . . . . . . . . . . . . 1 . . Grunt 175 | . 14 11 11 . 2 2 9 10 10 9 6 9 2 6 . . 3 11 12 6 . . 7 . 5 2 28 . . Brawler 7 | . . 1 . . . . 2 1 . . . . . . . . . 2 1 . . . . . . . . . . Duelist 11 | . . . . . . . . 1 . . . 1 2 1 . . . . . . . . . . . . 5 1 . Protector 1 | . . . . . . . . . . . . . . . . . . . . . . . . . . . . 1 . Researcher 2 | . . . . . . . . . . . . . . . . . . . . . . . . . 1 1 . . . Sentry 59 | . . 7 3 . 1 1 1 2 4 1 1 1 2 6 . 4 1 5 1 4 . . 1 . 3 3 5 2 . Demolisher 1 | . . . 1 . . . . . . . . . . . . . . . . . . . . . . . . . . Specialist 3 | . . . . . . . . . . . . . . . . . . . . . . . . . 3 . . . . Hunter 44 | . . . 1 . . 1 . . 1 1 2 . 2 . 2 . . . 2 4 1 . 4 . 5 . 12 6 . Programmer 44 | . . . . . . . . 1 2 . 2 1 . 1 . . . 2 3 2 . 1 2 6 4 5 6 6 . Q-Series 7 | . . . . . . . . . . . . . . . . . . . . . . . . . 1 2 4 . . Behemoth 10 | . . . . . . . . . . . . 1 . 1 . . . 1 1 1 . . 1 . . 1 2 1 . Cetus Guard 6 | . . . . . . . . . . . . . . . 6 . . . . . . . . . . . . . . Quarantine Guard 1 | . . . . . . . . . . . . . . . . . . . . . . . . . 1 . . . . S7 Guard 2 | . . . . . . . . . . . . . . . . . . . . . . . . . . 2 . . . M Guard 2 | . . . . . . . . . . . . . . . . . . . . . . . . . . . . 2 . Enhanced Grunt 21 | . . . . . . . . . . . . . . . . . . . . . . . . . . . . . 21 Enhanced Sentry 3 | . . . . . . . . . . . . . . . . . . . . . . . . . . . . . 3 Enhanced Hunter 8 | . . . . . . . . . . . . . . . . . . . . . . . . . . . . . 8 Combat Programmer 2 | . . . . . . . . . . . . . . . . . . . . . . . . . . . . 2 . Executioner 2 | . . . . . . . . . . . . . . . . . . . . . . . . . . 2 . . . Fortress 1 | . . . . . . . . . . . . . . . . . . . . . . . . . 1 . . . . Thug 4 | . . . . . . . . . . . . . . 3 1 . . . . . . . . . . . . . . Guerrilla 1 | . . . . . . . . . . . . . . . 1 . . . . . . . . . . . . . . Best Kill Streak 13 | 5 5 4 8 3 2 2 13 7 5 4 4 3 4 5 4 6 3 7 7 6 2 2 4 3 5 3 11 13 5 Combat Bots Only 13 | . 4 4 7 3 2 2 11 7 5 4 4 3 3 4 4 2 3 7 5 6 1 1 4 3 5 3 8 13 5 Max Kills in Single Turn 3 | 1 2 2 3 2 1 1 2 2 2 1 2 1 2 2 2 1 1 3 3 1 2 1 1 2 1 1 2 2 2 Gunslinging 2 | . 1 1 1 1 . . . 1 1 . . . . 1 . . . 2 . . . . . . . . . 1 1 Exploded 3 | . . . . . . . 2 . . 1 1 . . . . . . . 3 . . . . . . . 1 1 1 Melee 1 | . . . . . . . . . . 1 . . . . . . . . . . . 1 . . 1 1 1 . . Uniques/NPCs Destroyed 7 | . . . . . . . . . . . . . . . 1 . . . . . . . . . . . . 2 4 A7 (-5/Cetus) MAIN.C Shell (-1/Command) MAIN.C (-1/Command) A8 (-1/Access_0) A6 (-1/Access_0) A5 (-1/Access_0) A2 (-1/Access_0) Combat | -11 -10 -9 -8 -8 -8 -8 -7 -7 -7 -7 -6 -6 -5 -5 -5 -5 -5 -5 -4 -4 -3 -3 -3 -2 -2 -2 -1 -1 -1 -------- Run | Scr Mat Mat Mat Gar Mat Gar Fac Gar Fac Gar Fac Gar Fac Ext Cet Arc Hub Gar Fac Gar Res Tes Gar Res Qua Sec Acc Com Ac0 Damage Taken 44503 | . 978 831 1012 51 457 61 951 1659 767 894 1239 633 529 979 509 231 256 1020 2207 1419 53 94 1098 350 2955 1855 3854 4662 12899 Core 2513 | . 165 236 42 . 23 14 229 299 54 107 55 75 60 50 82 . 22 23 154 100 . . 86 14 66 81 78 77 321 Absorbed by Shields 23790 | . . . . . . . . . . . . . . 70 13 . . 46 699 786 53 91 757 148 1846 1914 3668 4598 9101 Reduced by Siege Mode 2424 | . . . . . . . . . . . . . . . 29 22 . 64 208 113 . . 69 . 364 104 223 417 811 Core Remaining (%) 63 | 100 34 41 . . . 85 . . . 1 . 84 . . . . . 76 . 77 . . 93 . . 65 . . 39 Volleys Fired 1763 | 20 133 72 55 5 5 38 16 38 43 23 60 40 30 45 33 26 12 47 79 57 6 42 57 14 73 39 321 120 214 Largest 4 | 2 2 2 4 4 4 4 4 4 4 4 4 4 4 4 4 4 4 4 4 4 4 4 4 4 4 2 2 4 4 Hottest 400 | 40 120 130 92 97 88 88 268 320 320 220 250 298 299 312 179 136 136 136 154 128 113 231 231 231 231 90 200 200 400 Shots Fired 4511 | 40 256 144 220 19 20 68 44 106 169 78 211 156 119 174 129 105 48 188 287 228 24 66 183 50 176 60 345 310 488 Gun 3613 | 40 223 134 220 19 20 42 27 87 169 71 180 156 119 174 129 105 48 188 248 228 24 40 35 12 77 55 94 301 348 Cannon 815 | . 26 10 . . . . 9 19 . 4 28 . . . . . . . 33 . . 25 139 36 97 . 240 9 140 Launcher 14 | . . . . . . . 8 . . 3 3 . . . . . . . . . . . . . . . . . . Special 69 | . 7 . . . . 26 . . . . . . . . . . . . 6 . . 1 9 2 2 5 11 . . Kinetic 2995 | 40 223 . 220 19 5 12 7 38 1 67 167 57 . 37 115 105 48 188 281 228 24 65 174 48 174 45 44 287 276 Thermal 1184 | . 33 144 . . 15 56 29 68 168 8 41 99 119 137 14 . . . . . . . . . . . 35 6 212 Explosive 6 | . . . . . . . . . . 3 3 . . . . . . . . . . . . . . . . . . Electromagnetic 290 | . . . . . . . 8 . . . . . . . . . . . . . . . . . . 10 255 17 . Robot Hit Streak 100 | 7 10 14 15 4 9 45 6 23 11 10 10 13 18 23 16 18 12 28 25 34 3 21 27 12 23 28 39 70 100 Robot Miss Streak 9 | 3 5 9 4 1 1 1 4 7 5 7 7 5 2 4 3 2 2 2 4 3 5 3 5 3 2 4 3 6 4 Penetration Max 1 | . . . . . . . . . . . 1 . . 1 1 . . 1 1 1 1 . 1 1 1 1 1 1 1 Secondary Targets 82 | . 4 1 7 1 . . . 5 2 3 4 1 1 5 3 . . 10 6 5 . . . . 1 2 1 11 9 Max Gunslinging Chain 2 | . 1 1 1 1 . . . 1 1 1 1 1 1 1 1 . . 2 1 1 . . . . 1 1 1 1 1 Capacitor 362 | . . . . . . . . . . . . . . . . . . . . . . . . . . . 283 20 59 Shots Hit Robots 3420 | 24 145 125 133 6 12 57 25 84 149 56 118 98 84 109 98 71 25 127 200 145 11 51 132 31 172 107 301 291 433 Core Hits 1963 | 8 59 149 62 7 5 19 28 56 88 35 76 55 53 44 40 32 12 49 101 57 5 13 42 13 61 42 139 243 370 Critical Kills 56 | . . . 1 . . . . . . . 1 2 1 1 4 4 2 8 9 4 1 . . 1 4 2 4 1 6 Critical Parts Destroyed 88 | . . . 1 . . . . 1 . . . 2 2 3 4 4 5 10 14 7 . 2 2 1 5 5 . 3 17 Critical Strikes 212 | . . . 2 . . 4 1 1 . . 1 6 5 5 10 8 7 19 27 14 1 2 8 5 18 10 12 5 41 Burn 8 | . . . . . . 2 1 . . . . 2 2 1 . . . . . . . . . . . . . . . Meltdown 2 | . . . . . . . . . . . . . . . . . . . . . . . . . . . 1 1 . Destroy 174 | . . . 2 . . . . 1 . . 1 4 3 4 10 8 7 19 27 14 1 2 2 2 9 9 4 4 41 Blast 18 | . . . . . . . . . . . . . . . . . . . . . . . 6 3 9 . . . . Corrupt 8 | . . . . . . . . . . . . . . . . . . . . . . . . . . 1 7 . . Sever 2 | . . . . . . 2 . . . . . . . . . . . . . . . . . . . . . . . Melee Attacks 234 | . . . . . . . 1 6 6 . 5 . 1 . . . . . . . . . . . 45 105 29 36 . Kinetic 23 | . . . . . . . . . . . . . . . . . . . . . . . . . 6 17 . . . Impact 13 | . . . . . . . 1 6 6 . . . . . . . . . . . . . . . . . . . . Slashing 192 | . . . . . . . . . . . . . . . . . . . . . . . . . 39 88 29 36 . Piercing . | . . . . . . . . . . . . . . . . . . . . . . . . . . . . . . Sneak Attacks 11 | . . . . . . . . . . . 1 . 1 . . . . . . . . . . . 1 5 3 . . Combat Hostiles 4 | . . . . . . . . . . . . . . . . . . . . . . . . . . 4 . . . Follow-up Attacks 9 | . . . . . . . . . . . . . . . . . . . . . . . . . . 9 . . . Damage Inflicted 119891 | 310 1488 1646 2285 153 239 870 1788 2243 2706 1190 3362 2135 1853 3043 2412 1603 849 3389 5855 3263 236 1696 4629 1249 6005 5633 12278 11091 34392 Guns 67389 | 310 1261 1540 2265 153 239 602 375 1736 2706 782 2167 2135 1850 3043 2412 1603 651 3389 4631 3263 194 981 745 388 1458 1799 2564 10649 11498 Cannons 29864 | . 225 70 . . . . 105 232 . 76 498 . . . . . . . 553 . . 645 3790 813 2446 . 7565 118 12728 Explosions 14734 | . . . . . . . 1308 . . 316 687 . . . . . 184 . 641 . . . . . . . 1119 313 10166 Melee 7172 | . . . . . . . . 275 . . . . . . . . . . . . . . . . 2100 3823 974 . . Ramming 464 | . 2 36 20 . . . . . . 16 10 . 3 . . . 14 . 30 . 42 70 94 48 1 11 56 11 . Kinetic 60405 | 310 1261 . 2265 153 89 142 125 567 . 710 1934 645 . 934 2126 1603 651 3389 5184 3263 194 1626 4535 1201 4032 1955 1275 10410 9826 Thermal 42667 | . 225 1610 . . 150 728 1185 1401 2706 148 731 1490 1850 2109 286 . . . 641 . . . . . . . 2410 431 24566 Explosive 892 | . . . . . . . . . . 316 576 . . . . . . . . . . . . . . . . . . Electromagnetic 8707 | . . . . . . . 478 . . . 111 . . . . . 184 . . . . . . . . 132 7563 239 . Impact 275 | . . . . . . . . 275 . . . . . . . . . . . . . . . . . . . . . Slashing 6481 | . . . . . . . . . . . . . . . . . . . . . . . . . 1972 3535 974 . . Piercing . | . . . . . . . . . . . . . . . . . . . . . . . . . . . . . . Highest Corruption 32 | . 4 1 . . . . 26 30 32 32 . . . 10 7 7 1 1 . . . 1 2 4 14 21 . . . Average Corruption 12 | . 3 1 . . . . 19 27 31 32 . . . 5 6 4 1 1 . . . 1 1 3 7 20 . . . Corruption Purged 12 | . . . . . . . . . . . . . . 5 . 7 . . . . . . . . . . . . . Effects 429 | . 21 2 . . . . 10 60 109 32 . . . 32 11 11 . 7 . . . 1 9 6 46 72 . . . Message Errors 102 | . 8 1 . . . . 1 12 18 10 . . . 6 3 1 . 5 . . . . 6 . 13 18 . . . Matter Fused 104 | . 4 . . . . . 3 16 29 4 . . . 10 4 2 . . . . . . . 2 10 20 . . . Heat Flow Errors 50 | . 2 . . . . . 1 3 15 3 . . . 2 1 2 . . . . . . 1 2 8 10 . . . Energy Discharges 49 | . 5 1 . . . . . 7 15 1 . . . 4 1 2 . . . . . 1 . 2 2 8 . . . Parts Rejected 3 | . . . . . . . . . 1 1 . . . . . . . . . . . . . . . 1 . . . Data Loss (minor) 53 | . 2 . . . . . 1 10 10 6 . . . 4 1 3 . 2 . . . . 2 . 5 7 . . . Data Loss (major) 18 | . . . . . . . 2 5 3 . . . . 2 . . . . . . . . . . 4 2 . . . Misfires 8 | . . . . . . . . 1 3 . . . . 3 . 1 . . . . . . . . . . . . . Alerts 9 | . . . . . . . . . 5 1 . . . . . . . . . . . . . . . 3 . . . Misdirections 7 | . . . . . . . . 1 4 2 . . . . . . . . . . . . . . . . . . . Weapon Failures 26 | . . . . . . . 2 5 6 4 . . . 1 1 . . . . . . . . . 4 3 . . . Overload Shots 5 | . . . . . . . . 3 . 2 . . . . . . . . . . . . . . . . . . . Effects 3 | . . . . . . . . . . 3 . . . . . . . . . . . . . . . . . . . Meltdown 3 | . . . . . . . . . . 3 . . . . . . . . . . . . . . . . . . . Overflow Damage 2889 | . . . . . . . 188 46 . 3 16 . . . . . 24 . 64 . 5 16 270 . 153 421 698 29 956 Projectiles 1566 | . . . . . . . 40 11 . . 11 . . . . . . . . . . 10 270 . 36 . 338 29 821 Explosions 606 | . . . . . . . 148 . . 3 5 . . . . . 24 . 64 . . . . . . . 227 . 135 Melee 717 | . . . . . . . . 35 . . . . . . . . . . . . 5 6 . . 117 421 133 . . Knockbacks 68 | . . 2 . . . . . 1 . . 1 . . . . . . . 13 . 1 10 24 8 8 . . . . Impact 7 | . . 2 . . . . . 1 . . 1 . . . . . . . . . 1 1 1 . . . . . . Kinetic 56 | . . . . . . . . . . . . . . . . . . . 12 . . 8 21 7 8 . . . . Secondary 5 | . . . . . . . . . . . . . . . . . . . 1 . . 1 2 1 . . . . . Self-Inflicted Damage 1263 | . . . . . . . 573 . . 154 23 . . . . . 86 . 105 . . . . . . . 92 . 230 Shots 21 | . . . . . . . 9 . . 3 1 . . . . . 1 . 2 . . . . . . . 1 . 4 Rammed 37 | . 3 6 1 . . . . . . 3 3 . 1 . . . . . 2 . 2 5 5 1 1 1 2 1 . Targets Rammed 42 | . 3 6 3 . . . . . . 3 4 . 1 . . . 1 . 2 . 2 6 5 1 1 1 2 1 . Kicked . | . . . . . . . . . . . . . . . . . . . . . . . . . . . . . . Crushed 5 | . . . 2 . . . . . . . 1 . . . . . 1 . . . . 1 . . . . . . . Highest Temperature 644 | . 159 199 148 12 24 54 204 492 355 588 234 233 489 644 147 69 25 67 70 130 6 263 51 110 223 240 284 351 134 Average Temperature 83 | . 42 72 35 5 10 20 50 153 87 152 81 102 154 171 29 37 8 11 25 35 4 102 9 13 78 70 81 100 48 Received Heat Transfer 5492 | . 393 258 387 . 144 18 141 510 273 333 297 276 60 193 . 45 18 192 166 86 . . 163 17 118 94 305 116 889 Effects 25 | . . . . . . . . 1 3 7 . . 6 4 . . . . . . . . . . . . 4 . . Shutdowns 5 | . . . . . . . . 1 . 2 . . 2 . . . . . . . . . . . . . . . . Energy Bleed 4 | . . . . . . . . . 1 1 . . 1 . . . . . . . . . . . . . 1 . . Interference 7 | . . . . . . . . . 1 . . . 2 1 . . . . . . . . . . . . 3 . . Matter Decay 2 | . . . . . . . . . 1 . . . . 1 . . . . . . . . . . . . . . . Short Circuit 3 | . . . . . . . . . . 2 . . 1 . . . . . . . . . . . . . . . . Damage (minor) 4 | . . . . . . . . . . 2 . . . 2 . . . . . . . . . . . . . . . Siege Activations 94 | . . . . . . . . . . . . . . . 5 4 2 7 8 5 . 1 4 2 9 6 17 8 16 Total Turns 2055 | . . . . . . . . . . . . . . . 51 69 5 140 117 118 . 44 69 15 279 157 357 214 420 Longest Duration 152 | . . . . . . . . . . . . . . . 21 33 4 38 44 42 . 44 24 8 71 72 152 125 63 Robots Corrupted 39 | . . . . . . . 1 . . . . . . . . . . . . . . . . . . 1 35 2 . Combat Hostiles 38 | . . . . . . . . . . . . . . . . . . . . . . . . . . 1 35 2 . Parts Fried 84 | . . . . . . . 1 . . . . . . 1 . . 1 . . . . . . . . 1 71 9 . Impact Corruptions 6 | . . . . . . . . 1 . . . . . . . . . . . . 1 3 1 . . . . . . Robots Melted 11 | . . . . . . 1 . 1 1 . . 1 . 5 . . . . . . . . . . . . 1 1 . Combat Hostiles 9 | . . . . . . . . . 1 . . 1 . 5 . . . . . . . . . . . . 1 1 . Parts Melted 82 | . . 1 . . . 4 1 6 14 . 7 4 18 19 . . . . 1 . . . . . . . 4 2 1 Heat Transferred 40017 | . 481 2083 . . 296 1924 1505 2960 5982 275 1333 2888 3319 3571 351 . . . 400 . . . . . . . 1921 225 10503 Parts Sabotaged . | . . . . . . . . . . . . . . . . . . . . . . . . . . . . . . Parts Stolen . | . . . . . . . . . . . . . . . . . . . . . . . . . . . . . . Parts Stripped . | . . . . . . . . . . . . . . . . . . . . . . . . . . . . . . Power Chain Reactions 3 | . . . . . . . 2 . . . . . . . . . . . . . . . . . . . 1 . . Missiles Intercepted 17 | . . . . . . . . . . . . . . . . . . . . . . . . . . . . 17 . Alert | -11 -10 -9 -8 -8 -8 -8 -7 -7 -7 -7 -6 -6 -5 -5 -5 -5 -5 -5 -4 -4 -3 -3 -3 -2 -2 -2 -1 -1 -1 ------- Run | Scr Mat Mat Mat Gar Mat Gar Fac Gar Fac Gar Fac Gar Fac Ext Cet Arc Hub Gar Fac Gar Res Tes Gar Res Qua Sec Acc Com Ac0 Peak Influence 1285 | 35 262 393 370 371 281 287 882 987 656 589 904 1042 639 879 722 585 640 1285 1048 678 436 213 512 324 369 251 659 388 . Initial 674 | . 22 42 165 141 180 182 150 467 518 248 308 632 546 239 444 288 136 448 674 172 381 138 67 288 167 18 71 195 . Average 369 | 23 88 133 133 310 213 256 406 786 458 426 549 846 562 375 598 474 394 969 514 486 343 130 300 192 107 131 171 294 . Maximum Alert Level 4 | . 1 1 1 1 1 1 3 3 2 2 3 3 2 3 3 2 2 4 3 2 2 1 2 1 1 1 2 3 . Low Security (%) 34 | 100 95 74 83 15 51 3 44 . 6 . . . . 5 . . 23 . 27 5 . 79 31 58 87 88 65 . . Level 1 22 | . 4 25 16 84 48 96 17 . 11 49 47 . . 70 . 49 33 . 18 27 65 20 37 41 12 11 25 12 . Level 2 20 | . . . . . . . 18 27 81 50 13 16 100 16 85 50 43 16 12 67 34 . 30 . . . 8 10 . Level 3 20 | . . . . . . . 20 72 . . 38 83 . 7 14 . . 56 41 . . . . . . . . 75 . Level 4 1 | . . . . . . . . . . . . . . . . . . 27 . . . . . . . . . . . Level 5 . | . . . . . . . . . . . . . . . . . . . . . . . . . . . . . . High Security . | . . . . . . . . . . . . . . . . . . . . . . . . . . . . . . Max Security . | . . . . . . . . . . . . . . . . . . . . . . . . . . . . . . Squads Dispatched 64 | . 7 2 2 . 2 . . . 4 . 5 . 3 2 . . 3 . 2 . 2 2 . 3 7 3 15 . . Investigation 10 | . 4 2 . . . . . . . . . . . . . . . . . . 1 1 . . 1 . 1 . . Extermination 20 | . . . . . . . . . 2 . 2 . 1 . . . . . 1 . . . . 2 3 3 6 . . Reinforcement 20 | . 3 . . . 1 . . . 2 . 2 . 1 . . . 1 . 1 . 1 1 . 1 3 . 3 . . Assault 5 | . . . . . . . . . . . 1 . 1 2 . . . . . . . . . . . . 1 . . Garrison 9 | . . . 2 . 1 . . . . . . . . . . . 2 . . . . . . . . . 4 . . Intercept . | . . . . . . . . . . . . . . . . . . . . . . . . . . . . . . Construction Impeded 1 | . . . . . . . . . . . . . . . . . . . 1 . . . . . . . . . . Haulers Reinforced 1 | . . . . . . . . . . . . . 1 . . . . . . . . . . . . . . . . Cargo Convoy Interrupts 1 | . . . . . . . . . . . 1 . . . . . . . . . . . . . . . . . . Alert ID Control Effect 1 | . . . . . . . . . . . . . . . . . . . . . . . . 1 . . . . . Stealth | -11 -10 -9 -8 -8 -8 -8 -7 -7 -7 -7 -6 -6 -5 -5 -5 -5 -5 -5 -4 -4 -3 -3 -3 -2 -2 -2 -1 -1 -1 --------- Run | Scr Mat Mat Mat Gar Mat Gar Fac Gar Fac Gar Fac Gar Fac Ext Cet Arc Hub Gar Fac Gar Res Tes Gar Res Qua Sec Acc Com Ac0 Distress Signals 40 | . 3 2 5 . . . 2 . 2 . . . . . 2 . . . . . 2 . . . . . 3 19 . Communications Jammed 72 | . . . . . . . . . . . . . . . . . . . . . . . . 2 3 48 19 . . Distress Signals 72 | . . . . . . . . . . . . . . . . . . . . . . . . 2 3 48 19 . . Times Spotted 793 | . 38 46 30 4 7 1 14 22 39 12 26 17 17 44 13 13 9 27 42 24 5 2 26 21 41 30 100 57 66 Peak Tracking Total 14 | . 3 4 6 3 3 1 10 6 4 5 4 3 4 13 5 1 5 5 6 4 2 1 5 5 10 6 10 14 7 Tactical Retreats 33 | . . 1 . . . . 1 2 1 1 . 3 1 3 . . . . . 3 . . 1 . 5 2 4 3 2 Traps | -11 -10 -9 -8 -8 -8 -8 -7 -7 -7 -7 -6 -6 -5 -5 -5 -5 -5 -5 -4 -4 -3 -3 -3 -2 -2 -2 -1 -1 -1 ------- Run | Scr Mat Mat Mat Gar Mat Gar Fac Gar Fac Gar Fac Gar Fac Ext Cet Arc Hub Gar Fac Gar Res Tes Gar Res Qua Sec Acc Com Ac0 Traps Triggered 41 | . 3 2 . . . 4 2 6 3 4 . 2 . 2 . . . 3 3 . . . 1 2 . . 2 2 . Indirectly . | . . . . . . . . . . . . . . . . . . . . . . . . . . . . . . Trap Hack Attempts . | . . . . . . . . . . . . . . . . . . . . . . . . . . . . . . Triggered . | . . . . . . . . . . . . . . . . . . . . . . . . . . . . . . Disarmed . | . . . . . . . . . . . . . . . . . . . . . . . . . . . . . . Reprogrammed . | . . . . . . . . . . . . . . . . . . . . . . . . . . . . . . Reused . | . . . . . . . . . . . . . . . . . . . . . . . . . . . . . . Traps Extracted . | . . . . . . . . . . . . . . . . . . . . . . . . . . . . . . Installed . | . . . . . . . . . . . . . . . . . . . . . . . . . . . . . . Triggered 1 | . . . . . . . . . . . 1 . . . . . . . . . . . . . . . . . . Machines | -11 -10 -9 -8 -8 -8 -8 -7 -7 -7 -7 -6 -6 -5 -5 -5 -5 -5 -5 -4 -4 -3 -3 -3 -2 -2 -2 -1 -1 -1 ---------- Run | Scr Mat Mat Mat Gar Mat Gar Fac Gar Fac Gar Fac Gar Fac Ext Cet Arc Hub Gar Fac Gar Res Tes Gar Res Qua Sec Acc Com Ac0 Machines Disabled 101 | . 1 . . . . . 24 1 . 1 6 1 . . . 7 9 4 15 2 . 4 1 1 7 8 2 3 4 Max in Single Turn 9 | . 1 . . . . . 9 1 . 1 2 1 . . . 1 8 1 4 1 . 1 1 1 1 1 1 1 1 Garrison Access 5 | . . . . . . . . . . . . . . . . . . . . . . . . . 1 . 4 . . Garrison Relay 9 | . . . . . . . . 1 . 1 . 1 . . . . . 3 . 2 . . 1 . . . . . . Network Hub 1 | . . . . . . . . . . . . . . . . . 1 . . . . . . . . . . . . Machines Sabotaged . | . . . . . . . . . . . . . . . . . . . . . . . . . . . . . . Garrisons Compromised 1 | . . . . . . . . . . . 1 . . . . . . . . . . . . . . . . . . Overloaded Fab Kills . | . . . . . . . . . . . . . . . . . . . . . . . . . . . . . . Fab Network Shutdowns . | . . . . . . . . . . . . . . . . . . . . . . . . . . . . . . Hacking | -11 -10 -9 -8 -8 -8 -8 -7 -7 -7 -7 -6 -6 -5 -5 -5 -5 -5 -5 -4 -4 -3 -3 -3 -2 -2 -2 -1 -1 -1 --------- Run | Scr Mat Mat Mat Gar Mat Gar Fac Gar Fac Gar Fac Gar Fac Ext Cet Arc Hub Gar Fac Gar Res Tes Gar Res Qua Sec Acc Com Ac0 Machines Accessed 83 | . 7 13 8 . 1 . 2 . 5 . 3 . 2 14 . . 1 . 4 . 1 2 . 3 7 3 6 1 . Terminals 56 | . 4 9 5 . . . 1 . 4 . 1 . 2 13 . . . . 2 . 1 1 . 3 4 3 2 1 . Fabricators 1 | . . . . . . . . . . . 1 . . . . . . . . . . . . . . . . . . Repair Stations 4 | . 1 . 1 . . . . . . . . . . 1 . . . . 1 . . . . . . . . . . Recycling Units 4 | . 2 2 . . . . . . . . . . . . . . . . . . . . . . . . . . . Scanalyzers 5 | . . 2 1 . . . . . . . . . . . . . . . . . . . . . 2 . . . . Garrison Access 13 | . . . 1 . 1 . 1 . 1 . 1 . . . . . 1 . 1 . . 1 . . 1 . 4 . . Total Hacks 234 | . 17 40 30 . 1 . 5 . 10 . 5 . 3 30 . . 3 . 15 . 7 6 . 13 25 7 16 1 . Successful 139 | . 11 27 26 . 1 . 2 . 4 . 2 . 1 15 . . 3 . 11 . 5 5 . 4 11 2 8 1 . Failed 94 | . 6 12 4 . . . 3 . 6 . 3 . 2 15 . . . . 4 . 2 1 . 9 14 5 8 . . Catastrophic 20 | . 1 3 . . . . 1 . 2 . 1 . . . . . . . 1 . . . . 1 6 . 4 . . Database Lockouts 1 | . . 1 . . . . . . . . . . . . . . . . . . . . . . . . . . . Manual 81 | . 8 22 14 . . . . . 6 . 1 . . 7 . . 1 . 11 . 2 3 . 4 2 . . . . Terminals 171 | . 12 31 20 . . . 3 . 8 . 1 . 3 26 . . . . 11 . 7 3 . 13 15 7 10 1 . Fabricators 1 | . . . . . . . . . . . 1 . . . . . . . . . . . . . . . . . . Repair Stations 11 | . 2 . 3 . . . . . . . . . . 4 . . . . 2 . . . . . . . . . . Recycling Units 6 | . 3 3 . . . . . . . . . . . . . . . . . . . . . . . . . . . Scanalyzers 19 | . . 6 5 . . . . . . . . . . . . . . . . . . . . . 8 . . . . Garrison Access 26 | . . . 2 . 1 . 2 . 2 . 3 . . . . . 3 . 2 . . 3 . . 2 . 6 . . Terminal Hacks 77 | . 6 17 14 . . . . . 2 . . . 1 10 . . . . 6 . 4 2 . 4 6 2 2 1 . Part Schematic 2 | . . . 1 . . . . . . . . . . . . . . . . . 1 . . . . . . . . Robot Schematic 2 | . 2 . . . . . . . . . . . . . . . . . . . . . . . . . . . . Robot Analysis 2 | . . 1 . . . . . . . . . . . . . . . . . . . . . . . . 1 . . Prototype ID Bank 10 | . 3 3 3 . . . . . . . . . . . . . . . . . . . . . 1 . . . . Open Door 13 | . . . . . . . . . . . . . 1 8 . . . . . . . . . 1 . 2 . 1 . Level Access Points 1 | . . . 1 . . . . . . . . . . . . . . . . . . . . . . . . . . Branch Access Points 5 | . . 1 . . . . . . . . . . . . . . . . 1 . 1 . . 1 . . 1 . . Terminal Index 2 | . . . 1 . . . . . . . . . . 1 . . . . . . . . . . . . . . . Garrison Index 1 | . . . . . . . . . . . . . . . . . . . . . . 1 . . . . . . . Alert Level 3 | . . 2 1 . . . . . . . . . . . . . . . . . . . . . . . . . . Unreport Threat 16 | . 1 3 2 . . . . . 2 . . . . . . . . . 4 . . . . 1 3 . . . . Locate Traps 7 | . . 2 1 . . . . . . . . . . 1 . . . . . . . 1 . 1 1 . . . . Security Status 2 | . . . 2 . . . . . . . . . . . . . . . . . . . . . . . . . . Patrol Status 4 | . . 2 1 . . . . . . . . . . . . . . . . . 1 . . . . . . . . Recall Reinforcements 1 | . . . . . . . . . . . . . . . . . . . 1 . . . . . . . . . . Hauler Manifests 3 | . . 1 1 . . . . . . . . . . . . . . . . . 1 . . . . . . . . Zone Layout 3 | . . 2 . . . . . . . . . . . . . . . . . . . . . . 1 . . . . Fabricator Hacks . | . . . . . . . . . . . . . . . . . . . . . . . . . . . . . . Repair Station Hacks 8 | . 2 . 3 . . . . . . . . . . 1 . . . . 2 . . . . . . . . . . Scan Component 5 | . 1 . 2 . . . . . . . . . . 1 . . . . 1 . . . . . . . . . . Repair 3 | . 1 . 1 . . . . . . . . . . . . . . . 1 . . . . . . . . . . Recycling Unit Hacks 1 | . 1 . . . . . . . . . . . . . . . . . . . . . . . . . . . . Report Inventory 1 | . 1 . . . . . . . . . . . . . . . . . . . . . . . . . . . . Scanalyzer 14 | . . 6 5 . . . . . . . . . . . . . . . . . . . . . 3 . . . . Insert Component 8 | . . 3 2 . . . . . . . . . . . . . . . . . . . . . 3 . . . . Analyze 6 | . . 3 3 . . . . . . . . . . . . . . . . . . . . . . . . . . Garrison Access Hacks 21 | . . . 1 . 1 . 2 . 2 . 2 . . . . . 2 . 2 . . 1 . . 2 . 6 . . Unlock Access 8 | . . . 1 . 1 . 1 . 1 . 1 . . . . . 1 . 1 . . 1 . . . . . . . Seal Access 5 | . . . . . . . . . . . . . . . . . . . . . . . . . 1 . 4 . . Coupler Status 8 | . . . . . . . 1 . 1 . 1 . . . . . 1 . 1 . . . . . 1 . 2 . . Unauthorized Hacks 18 | . 2 4 3 . . . . . . . . . . 4 . . 1 . 1 . 1 2 . . . . . . . Terminals 12 | . . 2 3 . . . . . . . . . . 4 . . . . 1 . 1 1 . . . . . . . Track 1 | . . . . . . . . . . . . . . . . . . . . . . 1 . . . . . . . Assimilate 3 | . . 1 . . . . . . . . . . . 1 . . . . . . 1 . . . . . . . . Botnet 3 | . . . 1 . . . . . . . . . . 2 . . . . . . . . . . . . . . . Disrupt 1 | . . 1 . . . . . . . . . . . . . . . . . . . . . . . . . . . Operators 4 | . . . 2 . . . . . . . . . . 1 . . . . 1 . . . . . . . . . . Fabricators . | . . . . . . . . . . . . . . . . . . . . . . . . . . . . . . Repair Stations . | . . . . . . . . . . . . . . . . . . . . . . . . . . . . . . Recycling Units 4 | . 2 2 . . . . . . . . . . . . . . . . . . . . . . . . . . . Tunnel 4 | . 2 2 . . . . . . . . . . . . . . . . . . . . . . . . . . . Scanalyzers . | . . . . . . . . . . . . . . . . . . . . . . . . . . . . . . Garrison Access 2 | . . . . . . . . . . . . . . . . . 1 . . . . 1 . . . . . . . Redirect 1 | . . . . . . . . . . . . . . . . . 1 . . . . . . . . . . . . Eject 1 | . . . . . . . . . . . . . . . . . . . . . . 1 . . . . . . . Data Cores Recovered 2 | . . . . . . . . . 1 . 1 . . . . . . . . . . . . . . . . . . Used . | . . . . . . . . . . . . . . . . . . . . . . . . . . . . . . Hacking Detections 57 | . 4 9 8 . . . 2 . 5 . 3 . 1 9 . . . . 2 . 1 1 . 2 6 1 3 . . Full Trace Events 4 | . 1 1 . . . . . . . . . . . . . . . . . . . . . . 1 . 1 . . Feedback Events 1 | . . . . . . . . . . . . . . . . . . . . . . . . . . . 1 . . Corruption 1 | . . . . . . . . . . . . . . . . . . . . . . . . . . . 1 . . Feedback Blocked . | . . . . . . . . . . . . . . . . . . . . . . . . . . . . . . Robot Schematics Acquired 2 | . 2 . . . . . . . . . . . . . . . . . . . . . . . . . . . . Robots Built . | . . . . . . . . . . . . . . . . . . . . . . . . . . . . . . Matter . | . . . . . . . . . . . . . . . . . . . . . . . . . . . . . . Time . | . . . . . . . . . . . . . . . . . . . . . . . . . . . . . . Total Robot Build Rating . | . . . . . . . . . . . . . . . . . . . . . . . . . . . . . . Part Schematics Acquired 7 | . . 3 3 . . . . . . . . . . . . . . . . . 1 . . . . . . . . Parts Built . | . . . . . . . . . . . . . . . . . . . . . . . . . . . . . . Matter . | . . . . . . . . . . . . . . . . . . . . . . . . . . . . . . Time . | . . . . . . . . . . . . . . . . . . . . . . . . . . . . . . Total Part Build Rating . | . . . . . . . . . . . . . . . . . . . . . . . . . . . . . . Parts Repaired 3 | . 1 . 1 . . . . . . . . . . . . . . . 1 . . . . . . . . . . Time 131 | . 26 . 51 . . . . . . . . . . . . . . . 54 . . . . . . . . . . Parts Recycled . | . . . . . . . . . . . . . . . . . . . . . . . . . . . . . . Recycled Matter . | . . . . . . . . . . . . . . . . . . . . . . . . . . . . . . Retrieved Matter . | . . . . . . . . . . . . . . . . . . . . . . . . . . . . . . Retrieved Components . | . . . . . . . . . . . . . . . . . . . . . . . . . . . . . . Parts Scanalyzed 5 | . . 3 2 . . . . . . . . . . . . . . . . . . . . . . . . . . Part Schematics Acquired 5 | . . 3 2 . . . . . . . . . . . . . . . . . . . . . . . . . . Parts Damaged . | . . . . . . . . . . . . . . . . . . . . . . . . . . . . . . Bothacking | -11 -10 -9 -8 -8 -8 -8 -7 -7 -7 -7 -6 -6 -5 -5 -5 -5 -5 -5 -4 -4 -3 -3 -3 -2 -2 -2 -1 -1 -1 ------------ Run | Scr Mat Mat Mat Gar Mat Gar Fac Gar Fac Gar Fac Gar Fac Ext Cet Arc Hub Gar Fac Gar Res Tes Gar Res Qua Sec Acc Com Ac0 Used RIF Installer 7 | . . . . 1 . 1 . 1 . . . 1 . . . . . 1 . 1 . . 1 . . . . . . Command Fork 1 | . . . . . . . . . . . . . . . . . . . . . . . 1 . . . . . . Threat Obfuscator 1 | . . . . . . . . . . . . . . . . . . 1 . . . . . . . . . . . Signal Jammer 1 | . . . . . . . . . . . . . . . . . . . . 1 . . . . . . . . . Robot Detection 1 | . . . . . . 1 . . . . . . . . . . . . . . . . . . . . . . . Watcher Feeds 1 | . . . . . . . . . . . . 1 . . . . . . . . . . . . . . . . . Alert ID Control 1 | . . . . . . . . 1 . . . . . . . . . . . . . . . . . . . . . Robots Hacked 25 | . . . . . . . . . . . 4 . 1 . . . . . 2 . . 1 6 2 2 3 4 . . Non-combat 9 | . . . . . . . . . . . 1 . 1 . . . . . 2 . . . . . 1 . 4 . . Combat 16 | . . . . . . . . . . . 3 . . . . . . . . . . 1 6 2 1 3 . . . Robot Hacks Applied 35 | . . . . . . . . . . . 5 . 1 . . . . . 5 . . 1 6 2 2 3 10 . . find_chute 3 | . . . . . . . . . . . 1 . 1 . . . . . 1 . . . . . . . . . . drop_inventory 2 | . . . . . . . . . . . . . . . . . . . . . . . . . 1 . 1 . . purge_threat 11 | . . . . . . . . . . . . . . . . . . . 4 . . . . . . . 7 . . disarm_traps 1 | . . . . . . . . . . . . . . . . . . . . . . . . . . . 1 . . map_route 1 | . . . . . . . . . . . . . . . . . . . . . . . . . . . 1 . . disable_scanner 2 | . . . . . . . . . . . . . . . . . . . . . . . . . . 2 . . . locate_prototypes 1 | . . . . . . . . . . . . . . . . . . . . . . . . . . 1 . . . find_garrison 1 | . . . . . . . . . . . 1 . . . . . . . . . . . . . . . . . . overwrite_iff 10 | . . . . . . . . . . . 3 . . . . . . . . . . . 6 . 1 . . . . formatsys_low 1 | . . . . . . . . . . . . . . . . . . . . . . 1 . . . . . . . formatsys_high 2 | . . . . . . . . . . . . . . . . . . . . . . . . 2 . . . . . Relay Couplers Released 43 | . . . . . . . . 4 . 3 . 5 . . . . . 9 3 7 . 4 5 . . . 3 . . Ejected 4 | . . . . . . . . . . . . . . . . . . . . . . 4 . . . . . . . Machine Destruction 33 | . . . . . . . . 4 . 3 . 5 . . . . . 9 . 7 . . 5 . . . . . . Programmers 6 | . . . . . . . . . . . . . . . . . . . 3 . . . . . . . 3 . . Attached 15 | . . . . . . . . . . . 1 . 1 . . . . 1 2 . 1 1 2 2 . . 3 1 . Robots Rewired 21 | . . . . . . . . . . . . . . 15 . . . 6 . . . . . . . . . . . Allies Hacked 2 | . . . . . . . . . . . 1 . . . . . . . . . . . . 1 . . . . . Hacks Repelled . | . . . . . . . . . . . . . . . . . . . . . . . . . . . . . . Allies | -11 -10 -9 -8 -8 -8 -8 -7 -7 -7 -7 -6 -6 -5 -5 -5 -5 -5 -5 -4 -4 -3 -3 -3 -2 -2 -2 -1 -1 -1 -------- Run | Scr Mat Mat Mat Gar Mat Gar Fac Gar Fac Gar Fac Gar Fac Ext Cet Arc Hub Gar Fac Gar Res Tes Gar Res Qua Sec Acc Com Ac0 Total Allies 66 | . . 1 . . . . . . . . 21 . . 27 . . . 6 . . 1 1 6 2 1 . . . . Largest Group 15 | . . 1 1 . . . . . . . 12 . . 15 5 . . 6 . . 1 2 1 2 1 . . . . Highest-Rated Group 572 | . . 10 10 . . . . . . . 473 . . 572 259 . . 183 . . 10 53 58 128 69 . . . . Highest-Rated Ally 156 | . . 10 10 . . . . . . . 74 . . 156 140 . . 49 . . 10 43 58 64 69 . . . . Total Orders 6 | . . . 3 . . . . . . . 2 . . . 1 . . . . . . . . . . . . . . STAY 3 | . . . 2 . . . . . . . . . . . 1 . . . . . . . . . . . . . . FOLLOW 1 | . . . 1 . . . . . . . . . . . . . . . . . . . . . . . . . . EXPLORE 2 | . . . . . . . . . . . 2 . . . . . . . . . . . . . . . . . . Ally Attacks 394 | . . . . . . . . . . . 63 . . 218 12 . . 72 . . . 5 20 4 . . . . . Total Damage 8405 | . . . . . . . . . . . 1253 . . 4230 333 . . 1934 . . . . 451 204 . . . . . Kills 50 | . . . . . . . . . . . 10 . . 28 2 . . 9 . . . . . 1 . . . . . Allies Corrupted 7 | . . . . . . . . . . . 3 . . 1 . . . . . . . 1 . 2 . . . . . Allies Melted . | . . . . . . . . . . . . . . . . . . . . . . . . . . . . . . Intel | -11 -10 -9 -8 -8 -8 -8 -7 -7 -7 -7 -6 -6 -5 -5 -5 -5 -5 -5 -4 -4 -3 -3 -3 -2 -2 -2 -1 -1 -1 ------- Run | Scr Mat Mat Mat Gar Mat Gar Fac Gar Fac Gar Fac Gar Fac Ext Cet Arc Hub Gar Fac Gar Res Tes Gar Res Qua Sec Acc Com Ac0 Robot Analysis Total 2 | . . 1 . . . . . . . . . . . . . . . . . . . . . . . . 1 . . Derelict Logs Recovered . | . . . . . . . . . . . . . . . . . . . . . . . . . . . . . . Drone Launches 2 | . . . . . . . . . . . 2 . . . . . . . . . . . . . . . . . . Drone Recoveries . | . . . . . . . . . . . . . . . . . . . . . . . . . . . . . . Exploration | -11 -10 -9 -8 -8 -8 -8 -7 -7 -7 -7 -6 -6 -5 -5 -5 -5 -5 -5 -4 -4 -3 -3 -3 -2 -2 -2 -1 -1 -1 ------------- Run | Scr Mat Mat Mat Gar Mat Gar Fac Gar Fac Gar Fac Gar Fac Ext Cet Arc Hub Gar Fac Gar Res Tes Gar Res Qua Sec Acc Com Ac0 Turns Passed 36282 | 232 2313 1888 1038 176 185 525 487 1158 2131 528 1590 1005 854 1675 348 655 275 1984 1135 961 625 595 1043 664 1655 1647 2755 3867 2288 Spaces Moved 15932 | 100 755 865 452 99 84 251 286 517 1182 209 743 351 343 741 125 161 83 942 442 428 347 280 409 364 749 628 1176 2090 730 Core 42 | 4 . . . . . . . 31 . . . . . 1 . 6 . . . . . . . . . . . . . Treads 12578 | 96 433 865 452 99 11 . . 57 69 209 158 124 317 740 125 155 83 942 442 428 347 280 409 364 749 628 1176 2090 730 Legs 710 | . 322 . . . . . . 106 . . 52 204 26 . . . . . . . . . . . . . . . . Wheels 2602 | . . . . . 73 251 286 323 1113 . 533 23 . . . . . . . . . . . . . . . . . Hover . | . . . . . . . . . . . . . . . . . . . . . . . . . . . . . . Flight . | . . . . . . . . . . . . . . . . . . . . . . . . . . . . . . Fastest Speed 50 | 50 120 160 155 155 130 110 110 50 105 148 115 115 160 160 160 160 160 160 160 160 150 150 160 155 155 151 141 143 143 Average Speed 159 | 155 235 173 157 155 138 112 114 152 120 197 157 215 192 162 160 222 160 160 160 160 160 155 160 157 155 152 150 151 153 Slowest Speed 1850 | 160 280 260 160 155 255 130 115 460 345 248 600 460 260 1450 160 1850 160 160 160 160 252 160 160 160 155 155 170 170 160 Overloaded Moves . | . . . . . . . . . . . . . . . . . . . . . . . . . . . . . . Propulsion Burnouts . | . . . . . . . . . . . . . . . . . . . . . . . . . . . . . . Robots Hopped . | . . . . . . . . . . . . . . . . . . . . . . . . . . . . . . Cave-ins Triggered 1 | . . . . . . . . . . . . . . . . . . . . . . . . . . 1 . . . Teleports 3 | . . . . . . . . . . . . . . . . . . . . . . . . . . 1 . 1 1 Exploration Rate (%) 43 | 4 94 75 57 34 13 42 7 58 35 37 19 40 10 84 59 83 12 82 18 57 14 33 46 16 77 49 50 63 41 Regions Visited 29 Branch Regions 9 Pre-discovered Areas 4 | . 2 2 . . . . . . . . . . . . . . . . . . . . . . . . . . . Known Exits Taken 11 | . . . 1 . 1 . 1 . 1 . 1 . . . . . 1 . 1 . 1 1 . 1 . . 1 . . Unknown Exits Taken 10 | 1 1 1 . . . . . . . . . . 1 1 1 1 . . . . . . . . 1 1 . 1 . Scrap Searched . | . . . . . . . . . . . . . . . . . . . . . . . . . . . . . . Spaces Dug 79 | . 4 . . . . . 1 . 4 . 1 . . . . . . . . . . . . . 4 25 22 4 14 Terrain Destroyed 1436 | . 7 . . . . . 60 1 4 39 35 1 . 2 23 19 180 14 123 18 3 3 19 16 26 25 32 42 744 Melee 59 | . . . . . . . 1 . 4 . . . . . . . . . . . . . . . 3 25 22 4 . Projectile 224 | . 7 . . . . . . 1 . . 3 1 . 2 23 17 16 13 30 17 3 3 19 16 23 . . 3 27 AOE 1140 | . . . . . . . 59 . . 39 32 . . . . . 164 . 93 . . . . . . . 9 35 709 Terrain Rammed . | . . . . . . . . . . . . . . . . . . . . . . . . . . . . . . Walls Destroyed . | . . . . . . . . . . . . . . . . . . . . . . . . . . . . . . Machines Disabled . | . . . . . . . . . . . . . . . . . . . . . . . . . . . . . . Actions | -11 -10 -9 -8 -8 -8 -8 -7 -7 -7 -7 -6 -6 -5 -5 -5 -5 -5 -5 -4 -4 -3 -3 -3 -2 -2 -2 -1 -1 -1 --------- Run | Scr Mat Mat Mat Gar Mat Gar Fac Gar Fac Gar Fac Gar Fac Ext Cet Arc Hub Gar Fac Gar Res Tes Gar Res Qua Sec Acc Com Ac0 Total 23845 | 133 1049 1108 641 110 144 414 411 789 1741 281 1033 522 477 1149 214 412 196 1342 732 611 404 409 715 432 1064 1150 2046 2589 1527 Wait 3746 | . 87 94 95 . 29 84 67 90 424 11 117 86 56 123 26 203 92 247 142 79 17 11 213 24 105 305 379 132 408 Move 15908 | 99 754 864 452 98 84 250 286 516 1181 207 743 350 342 740 124 160 83 941 442 427 346 280 408 363 748 627 1175 2089 729 Hop . | . . . . . . . . . . . . . . . . . . . . . . . . . . . . . . Pick Up 320 | 5 26 21 10 3 3 3 10 28 18 3 17 6 7 14 3 3 1 13 7 9 3 8 3 4 9 13 14 29 27 Fast Attach 356 | 7 5 6 1 . 7 2 6 21 14 2 27 12 13 16 7 3 . 9 18 6 12 17 2 7 22 23 26 37 28 Attach 244 | . 10 3 8 2 . . 6 13 8 7 9 2 8 8 1 2 2 5 7 2 1 8 3 3 4 16 15 41 50 Detach 152 | . 3 1 2 . 2 . 2 6 1 3 9 2 3 2 . . . 7 3 1 2 9 1 1 5 11 15 30 31 Swap 269 | 1 15 13 5 . 1 2 8 8 18 9 8 3 4 6 8 6 4 3 18 12 1 3 18 6 20 4 40 14 11 Drop 518 | 1 13 28 10 2 13 3 9 15 28 5 34 17 12 30 12 9 1 18 14 18 14 25 5 9 32 22 30 60 29 Fire 1763 | 20 133 72 55 5 5 38 16 38 43 23 60 40 30 45 33 26 12 47 79 57 6 42 57 14 73 39 321 120 214 Melee 218 | . . . . . . . 1 6 6 . 5 . 1 . . . . . . . . . . . 45 89 29 36 . Ram . | . . . . . . . . . . . . . . . . . . . . . . . . . . . . . . Kick . | . . . . . . . . . . . . . . . . . . . . . . . . . . . . . . Crush 42 | . 3 6 3 . . . . . . 3 4 . 1 . . . 1 . 2 . 2 6 5 1 1 1 2 1 . Escape Stasis 92 | . . . . . . 32 . 47 . 8 . 4 . . . . . 1 . . . . . . . . . . . Rewire 217 | . . . . . . . . 1 . . . . . 165 . . . 51 . . . . . . . . . . . Trap . | . . . . . . . . . . . . . . . . . . . . . . . . . . . . . . Miscellaneous . | . . . . . . . . . . . . . . . . . . . . . . . . . . . . . . Route ------- -11/Scrapyard -10/Materials (discovered 4 exits: *Mat x3 / [*Min]) -9/Materials (discovered 4 exits: *Mat x2 / *Min x2) -8/Materials (discovered 4 exits: *Fac x3 / Gar) -8/Garrison -8/Materials -8/Garrison (discovered 2 exits: *Fac x2) -7/Factory -7/Garrison (discovered 3 exits: *Fac x3) -7/Factory (discovered 6 exits: *Fac x3 / [*Low x2] / Gar) -7/Garrison -6/Factory (discovered 3 exits: [*Low x2] / Gar) -6/Garrison -5/Factory (discovered 2 exits: *Upp / *Ext) -5/Extension (discovered 2 exits: *Fac / [*Cet]) -5/Cetus -5/Archives (discovered 3 exits: *Fac / *Hub x2) -5/Hub_04(d) -5/Garrison (discovered 3 exits: *Fac x3) -4/Factory (discovered 3 exits: Upp x2 / Gar) -4/Garrison (discovered 2 exits: *Res x2) -3/Research (discovered 4 exits: *Res / Arm / *Tes x2) -3/Testing (discovered 2 exits: *Res / Gar) -3/Garrison (discovered 2 exits: *Res x2) -2/Research (discovered 2 exits: *Qua x2) -2/Quarantine -2/Section 7 -1/Access -1/Command (discovered 2 exits: [*Sur] / [*Ac0]) -1/Access_0 0b11 Command History --------- Turn | Location | Event 21 | -11/Scrapyard | Discovered new exit (range 16) 233 | -11/Scrapyard | Entered Materials 320 | -10/Materials | Build established: Mutant 816 | -10/Materials | Discovered new exit (range 5) 1000 | -10/Materials | Lost 3 parts (1n2w) 1085 | -10/Materials | Core integrity fell below 50% 1411 | -10/Materials | Discovered new exit (range 10) 1473 | -10/Materials | Discovered new exit (range 10) 1636 | -10/Materials | Repaired Lgt. Treads 2252 | -10/Materials | Discovered new exit (range 4) 2546 | -10/Materials | Entered another Materials area 2546 | -9/Materials | Evolved 2 slots: Propulsion x1, Utility x1 3199 | -9/Materials | Identified exit to Mines 3666 | -9/Materials | Core integrity fell below 50% 3809 | -9/Materials | Central database locked down 4008 | -9/Materials | Discovered new exit (range 16) 4409 | -9/Materials | Discovered new exit (range 8) 4434 | -9/Materials | Entered another Materials area 4434 | -8/Materials | Accompanied by 1 ally 4434 | -8/Materials | Evolved 2 slots: Weapon x2 4649 | -8/Materials | Destroyed 7 combat bots 4655 | -8/Materials | Identified exit to Factory 4777 | -8/Materials | Build established: Hacker-Gunner 5218 | -8/Materials | Repaired Cld. Ion Engine 5318 | -8/Materials | Garrison activated, responded to threat 5442 | -8/Materials | Identified exit to Garrison 5472 | -8/Materials | Entered Garrison 5524 | -8/Garrison | Triggered checkpoint 5610 | -8/Garrison | Discovered new exit (range 14) 5641 | -8/Garrison | Installed Relay Interface Framework 5648 | -8/Garrison | Entered Materials 5782 | -8/Materials | Garrison activated, responded to threat 5833 | -8/Materials | Identified exit to Garrison 5833 | -8/Materials | Entered Garrison 6052 | -8/Garrison | Triggered checkpoint 6126 | -8/Garrison | Discovered exit to Factory (range 9) 6196 | -8/Garrison | Triggered checkpoint 6330 | -8/Garrison | Discovered exit to Factory (range 12) 6353 | -8/Garrison | Expanded RIF knowledge: Robot Detection 6358 | -8/Garrison | Entered Factory 6358 | -7/Factory | Evolved 2 slots: Propulsion x1, Utility x1 6400 | -7/Factory | Build established: Tank 6699 | -7/Factory | Destroyed 11 combat bots 6703 | -7/Factory | System corruption reached 10% 6845 | -7/Factory | Identified exit to Garrison 6845 | -7/Factory | Entered Garrison 6937 | -7/Garrison | Core integrity fell below 50% 6960 | -7/Garrison | Destroyed 7 combat bots 6988 | -7/Garrison | Lost 5 parts (1p2n2u) 7092 | -7/Garrison | Triggered checkpoint 7163 | -7/Garrison | Garrison Relay disabled 7373 | -7/Garrison | Triggered checkpoint 7390 | -7/Garrison | Released all parts (12) 7677 | -7/Garrison | System corruption reached 30% 7754 | -7/Garrison | Discovered new exit (range 12) 7866 | -7/Garrison | Discovered new exit (range 9) 7928 | -7/Garrison | Triggered checkpoint 7940 | -7/Garrison | Triggered checkpoint 7980 | -7/Garrison | Discovered new exit (range 12) 7982 | -7/Garrison | Build established: Scavenger-Gunner 7998 | -7/Garrison | Expanded RIF knowledge: Alert ID Control 8003 | -7/Garrison | Entered Factory 8453 | -7/Factory | Build established: Tank 8588 | -7/Factory | Discovered new exit (range 7) 8588 | -7/Factory | Discovered new exit (range 10) 9312 | -7/Factory | Discovered new exit (range 16) 9772 | -7/Factory | Discovered new exit (range 15) 9808 | -7/Factory | Core integrity fell below 20% 9914 | -7/Factory | Discovered new exit (range 15) 10110 | -7/Factory | Identified exit to Garrison 10134 | -7/Factory | Entered Garrison 10196 | -7/Garrison | Triggered checkpoint 10263 | -7/Garrison | Garrison Relay disabled 10350 | -7/Garrison | Triggered checkpoint 10566 | -7/Garrison | Discovered new exit (range 9) 10662 | -7/Garrison | Entered Factory 10662 | -6/Factory | Evolved 2 slots: Utility x2 11012 | -6/Factory | First assault squad dispatched 11521 | -6/Factory | Cargo convoy interrupted 11552 | -6/Factory | Build established: Scavenger-Tank 11621 | -6/Factory | Discovered new exit (range 16) 12043 | -6/Factory | Discovered new exit (range 6) 12252 | -6/Factory | Identified exit to Garrison 12252 | -6/Factory | Entered Garrison 12258 | -6/Garrison | Expanded RIF knowledge: Watcher Feeds 12382 | -6/Garrison | Triggered checkpoint 12506 | -6/Garrison | Garrison Relay disabled 12801 | -6/Garrison | Build established: Bothacker-Gunner 12846 | -6/Garrison | Triggered checkpoint 13108 | -6/Garrison | Spotted B-75 Beast 13119 | -6/Garrison | Triggered checkpoint 13124 | -6/Garrison | Destroyed B-75 Beast 13231 | -6/Garrison | Discovered new exit (range 13) 13257 | -6/Garrison | Entered Factory 13257 | -5/Factory | Evolved 2 slots: Power x1, Utility x1 13320 | -5/Factory | Discovered new exit (range 12) 13399 | -5/Factory | Build established: Scavenger-Gunner 13557 | -5/Factory | First assault squad dispatched 13706 | -5/Factory | Identified exit to Upper Caves 13890 | -5/Factory | Build established: Scavenger-Tank 14096 | -5/Factory | Discovered new exit (range 10) 14111 | -5/Factory | Entered Extension 14319 | -5/Extension | Rescued a captive Derelict 14320 | -5/Extension | Rescued a captive Derelict 14345 | -5/Extension | Rescued a captive Derelict 14632 | -5/Extension | Spotted B-75 Beast 14643 | -5/Extension | Allies destroyed B-75 Beast 14666 | -5/Extension | Spotted B-75 Beast 14676 | -5/Extension | Destroyed B-75 Beast 14691 | -5/Extension | Lost 3 parts (1n2u) 14823 | -5/Extension | Rescued a captive Derelict 14825 | -5/Extension | Rescued a captive Derelict 14826 | -5/Extension | Rescued a captive Derelict 14861 | -5/Extension | Rescued a captive Derelict 14861 | -5/Extension | Rescued a captive Derelict 15032 | -5/Extension | Rescued a captive Derelict 15033 | -5/Extension | Rescued a captive Derelict 15391 | -5/Extension | Rescued A7 15466 | -5/Extension | System corruption reached 10% 15493 | -5/Extension | Rescued a captive Derelict 15611 | -5/Extension | First assault squad dispatched 15737 | -5/Extension | Discovered new exit (range 10) 15739 | -5/Extension | Discovered new exit (range 6) 15786 | -5/Extension | Entered Cetus 15786 | -5/Cetus | Accompanied by 5 allies (A7) 15791 | -5/Cetus | Acquired a Cetus Manufacturing Module code from A7 15808 | -5/Cetus | Spotted Cetus Guard 15808 | -5/Cetus | Spotted Cetus Guard 15810 | -5/Cetus | Spotted Cetus Guard 15811 | -5/Cetus | Allies destroyed Cetus Guard 15812 | -5/Cetus | Destroyed Cetus Guard 15813 | -5/Cetus | Spotted Cetus Guard 15814 | -5/Cetus | Destroyed Cetus Guard 15817 | -5/Cetus | Allies destroyed Cetus Guard 15863 | -5/Cetus | Destroyed A7 15879 | -5/Cetus | Extracted ID and sensor layout for unrecognized location from A7's data core 16017 | -5/Cetus | Discovered new exit (range 15) 16058 | -5/Cetus | Spotted Cetus Guard 16058 | -5/Cetus | Spotted Cetus Guard 16058 | -5/Cetus | Destroyed Cetus Guard 16061 | -5/Cetus | Spotted Cetus Guard 16067 | -5/Cetus | Destroyed Cetus Guard 16083 | -5/Cetus | Destroyed Cetus Guard 16084 | -5/Cetus | Spotted Cetus Guard 16092 | -5/Cetus | Destroyed Cetus Guard 16134 | -5/Cetus | Entered Archives 16475 | -5/Archives | Discovered new exit (range 16) 16505 | -5/Archives | Discovered new exit (range 15) 16567 | -5/Archives | Build established: Scavenger-Gunner 16770 | -5/Archives | Discovered new exit (range 13) 16789 | -5/Archives | Entered Hub_04(d) 16925 | -5/Hub_04(d) | Garrison activated, responded to threat 16938 | -5/Hub_04(d) | Build established: Scavenger-Tank 16944 | -5/Hub_04(d) | Network Hub disabled 17064 | -5/Hub_04(d) | Identified exit to Garrison 17064 | -5/Hub_04(d) | Entered Garrison 17198 | -5/Garrison | Triggered checkpoint 17233 | -5/Garrison | Garrison Relay disabled 17292 | -5/Garrison | Spotted B-75 Beast 17313 | -5/Garrison | Destroyed B-75 Beast 17323 | -5/Garrison | Triggered checkpoint 17387 | -5/Garrison | Triggered checkpoint 17425 | -5/Garrison | Destroyed 7 combat bots 17826 | -5/Garrison | Triggered checkpoint 17870 | -5/Garrison | Discovered new exit (range 15) 18008 | -5/Garrison | Triggered checkpoint 18052 | -5/Garrison | Garrison Relay disabled 18265 | -5/Garrison | Discovered new exit (range 11) 18376 | -5/Garrison | Triggered checkpoint 18416 | -5/Garrison | Triggered checkpoint 18481 | -5/Garrison | Discovered new exit (range 15) 18488 | -5/Garrison | Triggered checkpoint 18541 | -5/Garrison | Destroyed 7 combat bots 18571 | -5/Garrison | Expanded RIF knowledge: Threat Obfuscation 18686 | -5/Garrison | Garrison Relay disabled 18887 | -5/Garrison | Build established: Botlord-Tank 19048 | -5/Garrison | Entered Factory 19048 | -4/Factory | Evolved 2 slots: Power x1, Utility x1 19372 | -4/Factory | Spotted B-86 Titan 19421 | -4/Factory | Destroyed B-86 Titan 19452 | -4/Factory | Found Hvy. Reflective Plating 19506 | -4/Factory | Lost 3 parts (1p1u1w) 20091 | -4/Factory | Repaired Centrium Heavy Treads 20174 | -4/Factory | Identified exit to Upper Caves 20183 | -4/Factory | Identified exit to Garrison 20183 | -4/Factory | Entered Garrison 20218 | -4/Garrison | Triggered checkpoint 20254 | -4/Garrison | Garrison Relay disabled 20404 | -4/Garrison | Spotted B-86 Titan 20427 | -4/Garrison | Triggered checkpoint 20436 | -4/Garrison | Destroyed B-86 Titan 20454 | -4/Garrison | Triggered checkpoint 20813 | -4/Garrison | Discovered new exit (range 9) 20888 | -4/Garrison | Triggered checkpoint 20931 | -4/Garrison | Garrison Relay disabled 21040 | -4/Garrison | Discovered new exit (range 14) 21075 | -4/Garrison | Expanded RIF knowledge: Signal Jamming 21144 | -4/Garrison | Entered Research 21144 | -3/Research | Evolved 2 slots: Utility x2 21328 | -3/Research | Identified exit to Armory 21328 | -3/Research | Identified exit to Testing 21344 | -3/Research | Revision forces began assault on 0b10 21405 | -3/Research | Met up with Revision 17++ 21749 | -3/Research | Discovered new exit (range 6) 21769 | -3/Research | Entered Testing 21769 | -3/Testing | Accompanied by 1 ally 21786 | -3/Testing | Found Prototype Energy Cannon 21786 | -3/Testing | Identified Imp. Potential Cannon 21793 | -3/Testing | Found Imp. Potential Cannon 22222 | -3/Testing | Found Prototype Processor 22222 | -3/Testing | Identified Exp. Signal Interpreter 22330 | -3/Testing | Discovered new exit (range 14) 22364 | -3/Testing | Identified exit to Garrison 22364 | -3/Testing | Entered Garrison 22505 | -3/Garrison | Spotted B-86 Titan 22527 | -3/Garrison | Destroyed B-86 Titan 22546 | -3/Garrison | Triggered checkpoint 22579 | -3/Garrison | Discovered new exit (range 11) 22842 | -3/Garrison | Triggered checkpoint 22923 | -3/Garrison | Garrison Relay disabled 23248 | -3/Garrison | Triggered checkpoint 23261 | -3/Garrison | Discovered new exit (range 15) 23332 | -3/Garrison | Expanded RIF knowledge: Command Fork 23407 | -3/Garrison | Entered Research 23407 | -2/Research | Evolved 2 slots: Propulsion x2 23436 | -2/Research | Found Prototype Processor 23488 | -2/Research | Found Quantum Capacitor 23586 | -2/Research | Identified exit to Quarantine 24071 | -2/Research | Entered Quarantine 24204 | -2/Quarantine | Found Alien Artifact 24309 | -2/Quarantine | Found Alien Impact Weapon 24427 | -2/Quarantine | Found Alien Artifact 24427 | -2/Quarantine | Identified Phase Armor 24565 | -2/Quarantine | Identified Core Stripper 24572 | -2/Quarantine | Found Alien Slashing Weapon 24572 | -2/Quarantine | Identified Sigix Broadsword 24764 | -2/Quarantine | Scanned by Researcher 24859 | -2/Quarantine | Build established: Bothacker-Mutant 24895 | -2/Quarantine | Found Alien Artifact 24938 | -2/Quarantine | Cryocooling Duct disabled 24950 | -2/Quarantine | Identified Core Reset Matrix 24950 | -2/Quarantine | Identified Subatomic Replicator 24950 | -2/Quarantine | Identified Exp. Melee Analysis Suite 24953 | -2/Quarantine | Ambient heat levels rising (+20) 24953 | -2/Quarantine | Non-combat units ordered to evacuate 25356 | -2/Quarantine | Cryocooling Duct disabled 25371 | -2/Quarantine | Ambient heat levels rising (+20) 25371 | -2/Quarantine | Combat units ordered to evacuate 25415 | -2/Quarantine | System corruption reached 10% 25471 | -2/Quarantine | Quarantine Guard activated 25493 | -2/Quarantine | Build established: Bothacker-Gladiator 25494 | -2/Quarantine | Spotted Fortress 25504 | -2/Quarantine | Destroyed Fortress 25520 | -2/Quarantine | Spotted Quarantine Guard 25547 | -2/Quarantine | Destroyed Quarantine Guard 25556 | -2/Quarantine | Found Prototype Reactor 25556 | -2/Quarantine | Identified Vortex Chain Reactor 25559 | -2/Quarantine | Found Prototype Protection 25559 | -2/Quarantine | Identified Centrium Heavy Armor Plating 25568 | -2/Quarantine | Found Prototype Device 25568 | -2/Quarantine | Identified Thermal Barrier 25571 | -2/Quarantine | Found Prototype Device 25571 | -2/Quarantine | Identified EM Dispersion Field 25578 | -2/Quarantine | Found Prototype Device 25578 | -2/Quarantine | Identified Exp. Force Field 25581 | -2/Quarantine | Found Unknown Device 25581 | -2/Quarantine | Identified Antimissile System 25719 | -2/Quarantine | Discovered new exit (range 6) 25726 | -2/Quarantine | Entered Section 7 25787 | -2/Section 7 | Spotted S7 Guard 25817 | -2/Section 7 | Destroyed S7 Guard 25827 | -2/Section 7 | Found Corrupted Prototype Protection 25827 | -2/Section 7 | Identified Hvy. Regenerative Plating 25839 | -2/Section 7 | Found Alien Artifact 25883 | -2/Section 7 | Found Alien Artifact 25971 | -2/Section 7 | Used Subatomic Replicator to replicate Integrated Singularity Reactor 25972 | -2/Section 7 | Installed Integrated Singularity Reactor, increased core energy generation (+20) 25975 | -2/Section 7 | Installed Integrated Singularity Reactor, increased core energy generation (+20) 25980 | -2/Section 7 | Installed Integrated Dissipator, increased core heat dissipation (+20) 26130 | -2/Section 7 | Spotted S7 Guard 26133 | -2/Section 7 | Destroyed S7 Guard 26146 | -2/Section 7 | Found Hvy. Regenerative Plating 26158 | -2/Section 7 | Found Alien Artifact 26264 | -2/Section 7 | Build established: Generator-Gladiator 26536 | -2/Section 7 | Crushed by falling debris 26601 | -2/Section 7 | Found Alien Artifact 26645 | -2/Section 7 | Identified Core Membrane 26645 | -2/Section 7 | Installed Core Membrane, gained immunity to corruption 26651 | -2/Section 7 | Found Alien Artifact 26651 | -2/Section 7 | Identified Integrity Redistributor (x2) 26651 | -2/Section 7 | Used Integrity Redistributor, redistributed integrity from core (-302) 26655 | -2/Section 7 | Found Integrity Redistributor 26713 | -2/Section 7 | Found Alien Artifact 26713 | -2/Section 7 | Identified LRC Armor 26713 | -2/Section 7 | Installed LRC Armor, increased core integrity (+250) 26921 | -2/Section 7 | Spotted B-99 Colossus 26926 | -2/Section 7 | Destroyed B-99 Colossus 26935 | -2/Section 7 | Found Prototype Ballistic Gun 26939 | -2/Section 7 | Found Prototype Ballistic Gun 27028 | -2/Section 7 | Found Alien Artifact 27028 | -2/Section 7 | Identified Matter Drive 27041 | -2/Section 7 | Identified Multirail (x2) 27046 | -2/Section 7 | Found Alien Artifact 27048 | -2/Section 7 | Found Alien Artifact 27074 | -2/Section 7 | Spotted Executioner 27074 | -2/Section 7 | Spotted Executioner 27105 | -2/Section 7 | Identified Transdimensional Reconstructor (x2) 27105 | -2/Section 7 | Warped through subspace 27198 | -2/Section 7 | Found Transdimensional Reconstructor 27229 | -2/Section 7 | Destroyed Executioner 27256 | -2/Section 7 | Destroyed Executioner 27285 | -2/Section 7 | Found Prototype Processor 27285 | -2/Section 7 | Identified Exp. Core Analyzer 27290 | -2/Section 7 | Found Prototype Processor 27290 | -2/Section 7 | Identified Exp. Targeting Computer 27350 | -2/Section 7 | Discovered new exit (range 15) 27373 | -2/Section 7 | Entered Access 27373 | -1/Access | Evolved 2 slots: Utility x2 27556 | -1/Access | Build established: Generator-Mutant 27666 | -1/Access | Garrison activated, responded to threat 28305 | -1/Access | Found Corrupted Prototype Energy Gun 28305 | -1/Access | Identified Enh. Gamma Rifle 28695 | -1/Access | Destroyed 8 combat bots 28702 | -1/Access | Spotted B-99 Colossus 28873 | -1/Access | First assault squad dispatched 29052 | -1/Access | Destroyed 8 combat bots 29641 | -1/Access | Identified exit to Command 29726 | -1/Access | Garrison activated, responded to threat 29733 | -1/Access | Found Antimissile System 29916 | -1/Access | Spotted B-99 Colossus 29939 | -1/Access | Spotted B-99 Colossus 29948 | -1/Access | Destroyed B-99 Colossus 29996 | -1/Access | Destroyed B-99 Colossus 30009 | -1/Access | Found Hvy. Insulated Plating 30016 | -1/Access | Found Corrupted Multirail 30020 | -1/Access | Found Corrupted Multirail 30088 | -1/Access | Found Corrupted Multirail 30113 | -1/Access | Found Corrupted Multirail 30128 | -1/Access | Entered Command 30144 | -1/Command | Spotted B-99 Colossus 30334 | -1/Command | Spotted M Guard 30336 | -1/Command | Spotted M Guard 30336 | -1/Command | Spotted Combat Programmer 30348 | -1/Command | Destroyed Combat Programmer 30367 | -1/Command | Spotted Combat Programmer 30369 | -1/Command | Destroyed Combat Programmer 30385 | -1/Command | Destroyed M Guard 30394 | -1/Command | Destroyed M Guard 30394 | -1/Command | All MAIN.C guards destroyed 30414 | -1/Command | Found Corrupted Hvy. Regenerative Plating 30425 | -1/Command | Found Corrupted Prototype Reactor 30425 | -1/Command | Identified Zero-point Reactor 30429 | -1/Command | Found Corrupted Zero-point Reactor 30433 | -1/Command | Found Corrupted Prototype Device 30433 | -1/Command | Identified AEGIS Remote Shield 30444 | -1/Command | Found Corrupted Zero-point Reactor 30452 | -1/Command | Found Corrupted Zero-point Reactor 30454 | -1/Command | Found Corrupted AEGIS Remote Shield 30485 | -1/Command | Found Corrupted Hvy. Regenerative Plating 30532 | -1/Command | Met MAIN.C 30555 | -1/Command | 0b10 Conduit disabled 30563 | -1/Command | Used Integrity Redistributor, redistributed integrity from core (-185) 30584 | -1/Command | Destroyed MAIN.C Shell 30587 | -1/Command | MAIN.C activated Command garrisons 30628 | -1/Command | Destroyed MAIN.C 30683 | -1/Command | Destroyed 13 combat bots 30683 | -1/Command | Found Exp. Targeting Computer 30789 | -1/Command | Destroyed 7 combat bots 30849 | -1/Command | Spotted B-99 Colossus 31105 | -1/Command | Discovered new exit (range 9) 31298 | -1/Command | Destroyed B-99 Colossus 31729 | -1/Command | Found Corrupted Multirail 31732 | -1/Command | Found Corrupted Multirail 31776 | -1/Command | Found Prototype Reactor 31776 | -1/Command | Identified Singularity Reactor 31789 | -1/Command | Found Prototype Device 31789 | -1/Command | Identified Exp. Transmission Jammer 31815 | -1/Command | Found Vortex Chain Reactor 32024 | -1/Command | Build established: Scavenger-Gunner 32263 | -1/Command | Found Quantum Capacitor 32555 | -1/Command | Build established: Generator-Gunner 33131 | -1/Command | Build established: Generator-Mutant 33987 | -1/Command | Warped through subspace to slip node 33987 | -1/Command | Discovered new exit (range 5) 33995 | -1/Command | Entered Access_0 33996 | -1/Access_0 | Architect warped through subspace 34007 | -1/Access_0 | Destroyed A8 34048 | -1/Access_0 | Architect warped through subspace 34068 | -1/Access_0 | Subspace Access Node disabled 34073 | -1/Access_0 | Architect warped through subspace 34109 | -1/Access_0 | Subspace Access Node disabled 34138 | -1/Access_0 | Architect warped through subspace 34157 | -1/Access_0 | Architect warped through subspace 34178 | -1/Access_0 | Architect warped through subspace 34189 | -1/Access_0 | Used Integrity Redistributor, redistributed integrity from core (-296) 34202 | -1/Access_0 | Architect warped through subspace 34266 | -1/Access_0 | Architect warped through subspace 34285 | -1/Access_0 | Architect warped through subspace 34298 | -1/Access_0 | A6 warped into view 34306 | -1/Access_0 | Destroyed A6 34309 | -1/Access_0 | Subspace Access Node disabled 34344 | -1/Access_0 | Architect warped through subspace 34396 | -1/Access_0 | Architect warped through subspace 34442 | -1/Access_0 | Architect warped through subspace 34482 | -1/Access_0 | Architect warped through subspace 34520 | -1/Access_0 | Architect warped through subspace 34553 | -1/Access_0 | Architect warped through subspace 34587 | -1/Access_0 | Architect warped through subspace 34589 | -1/Access_0 | Found Prototype Device 34625 | -1/Access_0 | Architect warped through subspace 34682 | -1/Access_0 | Architect warped through subspace 34687 | -1/Access_0 | Identified Desublimator 34703 | -1/Access_0 | Found Prototype Protection 34703 | -1/Access_0 | Identified Exp. Powered Armor 34709 | -1/Access_0 | Architect warped through subspace 34718 | -1/Access_0 | Found Prototype Device 34718 | -1/Access_0 | Identified Exp. Phase Shifter 34734 | -1/Access_0 | Found Exp. Powered Armor 34737 | -1/Access_0 | Found Exp. Powered Armor 34743 | -1/Access_0 | Found Exp. Phase Shifter 34748 | -1/Access_0 | Architect warped through subspace 34776 | -1/Access_0 | Architect warped through subspace 34794 | -1/Access_0 | Architect warped through subspace 34811 | -1/Access_0 | Architect warped through subspace 34844 | -1/Access_0 | Architect warped through subspace 34851 | -1/Access_0 | A5 warped into view 34877 | -1/Access_0 | Destroyed A5 34890 | -1/Access_0 | Architect warped through subspace 34944 | -1/Access_0 | Architect warped through subspace 34971 | -1/Access_0 | Core integrity fell below 50% 34986 | -1/Access_0 | Subspace Access Node disabled 35011 | -1/Access_0 | Lost 3 parts (1p2w) 35465 | -1/Access_0 | Build established: Scavenger-Mutant 35704 | -1/Access_0 | Destroyed A2 35720 | -1/Access_0 | Extracted Singularity Gate Test 138-C access codes from A2's data core 35924 | -1/Access_0 | Singularity Gate disabled 35960 | -1/Access_0 | Found Alien Artifact 36158 | -1/Access_0 | Build established: Scavenger-Gunner 36272 | -1/Access_0 | Identified Hpw. Transdimensional Reconstructor 36272 | -1/Access_0 | Warped through subspace to slip node 36272 | -1/Access_0 | Discovered new exit (range 8) 36283 | *** | Establishing 0b11! Last Messages --------------- 35821_ Enhanced Grunt destroyed. 35823_ Exp. Power Amplifier destroyed. 35825_ Slug penetrates Enhanced Grunt. 35835_ Slug penetrates Wall. 35840_ Enhanced Grunt destroyed. 35840_ Slug penetrates Wall. 35860_ Acquired 78 matter. 35867_ Acquired Neutron Cannon. 35868_ Acquired 87 matter. 35871_ Dropped Exp. Powered Armor. 35871_ Acquired Adv. Particle Charger. 35924_ Singularity Gate disabled. 35924_ Slug penetrates Wall. 35948_ Slug penetrates Workstation. 35948_ Workstation disabled. 35960_ Acquired Alien Artifact. 36271_ Discarded Exp. Targeting Computer. 36272_ Identified Hpw. Transdimensional Reconstructor. 36272_ Warped through subspace, drawn to slip node. 36272_ EXIT=FOUND Map ----- +----------------------------------------------------+ | | | | | | | | | | | | | | | | | | | | | | | | | | | | | | | | | ?????????????????????????????????????????????????? | | ?????????????????????????????????????????????????? | | ?????????????????????????????????????????????????? | | ?????????????????????????????????????????????????? | | ?????????????????????????????????????????????????? | | ?????????????????????????????????????????????????? | | ????????????????????????###??????????????????????? | | ???????????????????????## ##?????????????????????? | | ???????????????????????# #?????????????????????? | | ???????????????????????# @ #?????????????????????? | | ??????????????????????## #?????????????????????? | | ??????????????????????# #?????????????????????? | | ??????????????????????# ##?????????????????????? | | ??????????????????????## #?????????????????????? | | ??????????????????????# #?????????????????????? | | ??????????????????????# ##?????????????????????? | | ??????????????????????# < #?????????????????????? | | ??????????????????????# ##?????????????????????? | | ??????????????????????## #??????????????????????? | | ???????????????????????####??????????????????????? | | ?????????????????????????????????????????????????? | | ?????????????????????????????????????????????????? | | ?????????????????????????????????????????????????? | | ?????????????????????????????????????????????????? | | ?????????????????????????????????????????????????? | | ?????????????????????????????????????????????????? | | ?????????????????????????????????????????????????? | | ?????????????????????????????????????????????????? | | ?????????????????????????????????????????????????? | | ?????????????????????????????????????????????????? | | ?????????????????????????????????????????????????? | | ?????????????????????????????????????????????????? | | ?????????????????????????????????????????????????? | | ?????????????????????????????????????????????????? | +----------------------------------------------------+ Best States ------------- Heat Dissipation 226 Coolant Potential 120 Energy Generation 145 Energy Capacity 2300 Matter Stores 800 Matter Capacity 800 Sight Range 23 Robot Scan Range 16 Terrain Scan Range 16 Terrain Scan Density 410 Jamming Range 22 Power Amplification 40 Armor Coverage 2400 Resistance: KI 30 Resistance: TH 50 Resistance: EM 75 Core Shielding 30 Propulsion Shielding 66 Utility Shielding 66 Weapon Shielding 90 Point Defense Rating 240 Weapon Cycling 30 Melee Speed Boost 30 Phase Shifting 20 Evasion (%) 60 Targeting Accuracy 24 Melee Accuracy 8 Target Analysis 8 Armor Integrity Analysis 40 Recoil Reduction 6 Particle Charging 25 Kinecelleration 40 Stasis Canceling 2 Offensive Hacking 26 Defensive Hacking 26 Relay Coupler Types 94 Relay Coupler Value 5 Item Schematics ----------------- Hacking Suite | -9/Materials | Scanalyzed Imp. Propulsion Shielding | -9/Materials | Scanalyzed Spread Laser | -9/Materials | Scanalyzed Actuator Array | -8/Materials | Hacked Hpw. Shotgun | -8/Materials | Scanalyzed Adv. Treads | -8/Materials | Scanalyzed Adv. Heavy Siege Treads | -3/Research | Hacked Robot Schematics ------------------ O-16 Technician | -10/Materials | Hacked M-13 Machinist | -10/Materials | Hacked Fabricated ------------ Nothing Alien Tech Used ----------------- Phase Armor Core Stripper Sigix Broadsword Subatomic Replicator Integrated Singularity Reactor Integrated Dissipator Core Membrane Integrity Redistributor LRC Armor Matter Drive Transdimensional Reconstructor High-powered Transdimensional Reconstructor Achievements -------------- None Challenges ------------ None Game ------ Seed PointMomentumBoregun Manual? 0 Play Time 04:09:39 Cumulative 1929.9 hours Start 2021.06.12 @ 09:33:07 End 2021.06.12 @ 22:24:39 Sessions 5 Manual Loads 0 Difficulty Rogue Special Mode None Game No. 2567 Rogue 2559 Adventurer 0 Explorer 8 Win Type 1 Total 207 Types 42/28/83/3/3/5/40/2/1 Lore% 99 Gallery% 99 Achievement% 100 Wizard Run 0 Options --------- ASCII 0 Keyboard 1 Movement Numpad Keybinds 1 Fullscreen 1 Font 18/SmallcapsGlow Map View 76x50 Tactical HUD 1 Map Filters NONE Filters NONE Steam 1 RUN: 3960590b-6038-4a3b-ba8b-db7949c6a511